Workbook

Sheet McCabe
A1: Dados das Substâncias: | H1: Condições de Operação da Coluna:
A2: Substância | D2: A | E2: B | F2: C | H2: PT = | I2: 760 | J2: mmHg | BH2: D = | BI2: =I3*(I5-I6)/(I7-I6) -> 57.1 | BJ2: mol/h
A3: Tolueno | B3: (A) | D3: 7 | E3: 1300 | F3: 220 | H3: F = | I3: 100 | J3: mol/h | L3: q = | M3: 0.3 | S3: Reta pontilhada de xb e xd | BH3: B = | BI3: =I3*(I7-I5)/(I7-I6) -> 42.9 | BJ3: mol/h
A4: 4 metil 2 pentanol | B4: (B) | D4: 8.5 | E4: 2100 | F4: 260 | H4: L/D = | I4: 3.00 | S4: 0 | T4: =I6 -> 0.1 | BH4: L = | BI4: =I4*BI2 -> 171.4 | BJ4: mol/h | BK4: L/V = | BL4: =BI4/BI5 -> 0.750
A5: A12 = | B5: 0.000 | H5: zA = | I5: 0.5 | J5: mol/mol | S5: =I6 -> 0.1 | T5: =I6 -> 0.1 | BH5: V = | BI5: =BI4+BI2 -> 228.6 | BJ5: mol/h | BK5: L'/V' = | BL5: =BI6/BI7 -> 1.270
A6: A21 = | B6: 0.000 | H6: xB = | I6: 0.1 | J6: mol/mol | S6: 0 | T6: =I7 -> 0.8 | BH6: L' = | BI6: =BI4+M3*I3 -> 201.4 | BJ6: mol/h
H7: xD = | I7: 0.8 | J7: mol/mol | S7: =I7 -> 0.8 | T7: =I7 -> 0.8 | BH7: V' = | BI7: =BI6-BI3 -> 158.6 | BJ7: mol/h
Z8: ROR | AB8: ROA | AD8: ROE | AK8: Alimentação | AP8: Alimentação | AR8: L/D mínimo | AX8: Prato | AY8: T | BC8: Prato | BD8: T
B9: T (ºC) | C9: =M9 -> yA | D9: XA | E9: XB | F9: PAV (mmHg) | G9: PBV (mmHg) | H9: γA | I9: γB | J9: KA | K9: KB | L9: αAB | M9: yA | N9: yB | O9: Σyi | P9: =B9 -> T (ºC) | R9: N mínimo baixo-cima | V9: N mínimo cima-baixo | Z9: x | AA9: y | AB9: x | AC9: y | AD9: x | AE9: y | AH9: N | AK9: Ótima | AM9: N | AP9: Ótima | AR9: ROR | AS9: ROE | AU9: ROA | AZ9: x | BA9: y | BE9: x | BF9: y | BK9: (Estágios de baixo para cima) | BQ9: (Estágios de cima para baixo)
B10: 113.7 | C10: =M10 -> 0.0 | D10: 0.000 | E10: =1-D10 -> 1.000 | F10: =10^($D$3-$E$3/($F$3+$B10)) -> 1272.1 | G10: =10^($D$4-$E$4/($F$4+$B10)) -> 760.0 | H10: =IF($B$6=0,1,IF(E10=0,1,EXP($B$5/(1+D10*$B$5/E10/$B$6)^2))) -> 1.000 | I10: =IF($B$5=0,1,IF(D10=0,1,EXP($B$6/(1+E10*$B$6/D10/$B$5)^2))) -> 1.000 | J10: =H10*F10/$I$2 -> 1.674 | K10: =I10*G10/$I$2 -> 1.000 | L10: =J10/K10 -> 1.674 | M10: =J10*D10 -> 0.000 | N10: =K10*E10 -> 1.000 | O10: =M10+N10 -> 1.000 | P10: =B10 -> 113.7199679 | R10: =I6 -> 0.100 | S10: =R10 -> 0.100 | T10: =S10-S9 -> 0.100 | V10: =I7 -> 0.8 | W10: =V10 -> 0.8 | X10: =W10-W9 -> 0.8 | Z10: =IF(D10>=$I$7,$I$7,IF(D10>=$AB$11,D10,$AB$11)) -> 0.436 | AA10: =$BL$4*Z10+$BI$2/$BI$5*$I$7 -> 0.53 | AB10: =$I$5 -> 0.50 | AC10: =$I$5 -> 0.50 | AD10: =IF(D10<=$I$6,$I$6,IF(D10>=$AB$11,$AB$11,D10)) -> 0.100 | AE10: =$BL$5*AD10-$BI$3/$BI$7*$I$6 -> 0.10 | AF10: =Z10 -> 0.44 | AG10: =AD10 -> 0.10 | AH10: =$I$6 -> 0.10 | AI10: =$I$6 -> 0.10 | AJ10: =AI10-AI9 -> 0.10 | AK10: =IF(AH10>=$AB$11,COUNTIF($AJ$10:AJ10,">0")-1,99999) -> 99999.00 | AM10: =I7 -> 0.80 | AN10: =I7 -> 0.80 | AO10: =AN10-AN9 -> 0.80 | AP10: =IF(AM10<=$AB$11,COUNTIF($AO$10:AO10,"<0"),99999) -> 99999.00 | AR10: =I7 -> 0.80 | AS10: =I6 -> 0.10 | AT10: =IF($M$3>1,IF(M10-AV10>0,0,1),IF(M10-AV10>0,1,0)) -> 0.00 | AU10: =IF($M$3=1,$I$5,D10) -> 0.00 | AV10: =IF($M$3=1,D10,IF($M$3/($M$3-1)*AU10-$I$5/($M$3-1)>M10,M10,$M$3/($M$3-1)*AU10-$I$5/($M$3-1))) -> 0.00 | AX10: =IF(AJ10<=0,0,COUNTIF($AJ$10:AJ10,">0")-1) -> 0.00 | AY10: =IF(AX10=0,0,VLOOKUP(AI10,$D$10:$P$110,13)) -> 0.00 | AZ10: =IF(AX10=0,-1,AH10) -> -1.00 | BA10: =IF(AX10=0,-1,AI10) -> -1.00 | BC10: =IF(AO10>=0,0,COUNTIF($AO$10:AO10,"<0")) -> 0.00 | BD10: =IF(BC10=0,0,VLOOKUP(AN10,$D$10:$P$110,13)) -> 0.00 | BE10: =IF(BC10=0,-1,AN10) -> -1.00 | BF10: =IF(BC10=0,-1,AM10) -> -1.00
B11: 113.5 | C11: =M11 -> 0.0 | D11: 0.010 | E11: =1-D11 -> 0.990 | F11: =10^($D$3-$E$3/($F$3+$B11)) -> 1265.3 | G11: 754.8 | H11: =IF($B$6=0,1,IF(E11=0,1,EXP($B$5/(1+D11*$B$5/E11/$B$6)^2))) -> 1.000 | I11: 1.000 | J11: 1.665 | K11: 0.993 | L11: =J11/K11 -> 1.676 | M11: =J11*D11 -> 0.017 | N11: =K11*E11 -> 0.983 | O11: =M11+N11 -> 1.000 | P11: 113.5203415 | R11: =S10 -> 0.100 | S11: =IF(S10>=$I$7,S10,VLOOKUP(R10,$D$10:$M$110,10)) -> 0.159 | T11: =S11-S10 -> 0.059 | V11: =W10 -> 0.8 | W11: =IF(W10<=$I$6,W10,VLOOKUP(V10,$C$10:$D$110,2)) -> 0.68 | X11: =W11-W10 -> -0.12 | Z11: 0.436 | AA11: 0.53 | AB11: =($BI$2/$BI$5*$I$7+$I$6*$BI$3/$BI$7)/($BL$5-$BL$4) -> 0.44 | AC11: =$BL$4*AB11+$BI$2/$BI$5*$I$7 -> 0.53 | AD11: 0.100 | AE11: 0.10 | AF11: =Z11 -> 0.44 | AG11: =AD11 -> 0.10 | AH11: =IF(AI10>=$I$7,AI10,IF(AI10<=$AC$11,VLOOKUP(AI10,$AE$10:$AG$110,3),VLOOKUP(AI10,$AA$10:$AF$110,6))) -> 0.10 | AI11: =IF(AH10>=$I$7,AH10,VLOOKUP(AH10,$D$10:$M$110,10)) -> 0.16 | AJ11: =AI11-AI10 -> 0.06 | AK11: =IF(AH11>=$AB$11,COUNTIF($AJ$10:AJ11,">0")-1,99999) -> 99999.00 | AM11: =IF(AN10<=$I$6,AN10,IF(AN10>=$AB$11,VLOOKUP(AN10,$Z$10:$AA$110,2),VLOOKUP(AN10,$AD$10:$AE$110,2))) -> 0.80 | AN11: =IF(AN10<=$I$6,AN10,VLOOKUP(AM10,$C$10:$D$110,2)) -> 0.68 | AO11: =AN11-AN10 -> -0.12 | AP11: =IF(AM11<=$AB$11,COUNTIF($AO$10:AO11,"<0"),99999) -> 99999.00 | AR11: =IF($M$3=1,$I$5,VLOOKUP(1,AT10:AV110,2,FALSE)) -> 0.41 | AS11: =AR11 -> 0.41 | AT11: 0.00 | AU11: 0.01 | AV11: 0.02 | AX11: =IF(AJ11<=0,0,COUNTIF($AJ$10:AJ11,">0")-1) -> 1.00 | AY11: =IF(AX11=0,0,VLOOKUP(AI11,$D$10:$P$110,13)) -> 110.79 | AZ11: =IF(AX11=0,-1,AH11) -> 0.10 | BA11: =IF(AX11=0,-1,AI11) -> 0.16 | BC11: =IF(AO11>=0,0,COUNTIF($AO$10:AO11,"<0")) -> 1.00 | BD11: =IF(BC11=0,0,VLOOKUP(AN11,$D$10:$P$110,13)) -> 100.97 | BE11: =IF(BC11=0,-1,AN11) -> 0.68 | BF11: =IF(BC11=0,-1,AM11) -> 0.80
B12: 113.3 | C12: =M12 -> 0.0 | D12: 0.020 | E12: =1-D12 -> 0.980 | F12: =10^($D$3-$E$3/($F$3+$B12)) -> 1259.2 | G12: 750.1 | H12: 1.000 | I12: 1.000 | J12: 1.657 | K12: 0.987 | L12: =J12/K12 -> 1.679 | M12: =J12*D12 -> 0.033 | N12: =K12*E12 -> 0.967 | O12: =M12+N12 -> 1.000 | P12: 113.3426624 | R12: =S11 -> 0.159 | S12: =IF(S11>=$I$7,S11,VLOOKUP(R11,$D$10:$M$110,10)) -> 0.159 | T12: =S12-S11 -> 0.000 | V12: =W11 -> 0.68 | W12: =IF(W11<=$I$6,W11,VLOOKUP(V11,$C$10:$D$110,2)) -> 0.68 | X12: =W12-W11 -> 0 | Z12: 0.436 | AA12: 0.53 | AD12: 0.100 | AE12: 0.10 | AF12: 0.44 | AG12: =AD12 -> 0.10 | AH12: =IF(AI11>=$I$7,AI11,IF(AI11<=$AC$11,VLOOKUP(AI11,$AE$10:$AG$110,3),VLOOKUP(AI11,$AA$10:$AF$110,6))) -> 0.14 | AI12: =IF(AH11>=$I$7,AH11,VLOOKUP(AH11,$D$10:$M$110,10)) -> 0.16 | AJ12: =AI12-AI11 -> 0.00 | AK12: =IF(AH12>=$AB$11,COUNTIF($AJ$10:AJ12,">0")-1,99999) -> 99999.00 | AM12: 0.71 | AN12: =IF(AN11<=$I$6,AN11,VLOOKUP(AM11,$C$10:$D$110,2)) -> 0.68 | AO12: =AN12-AN11 -> 0.00 | AP12: =IF(AM12<=$AB$11,COUNTIF($AO$10:AO12,"<0"),99999) -> 99999.00 | AT12: 0.00 | AU12: 0.02 | AV12: 0.03 | AX12: =IF(AJ12<=0,0,COUNTIF($AJ$10:AJ12,">0")-1) -> 0.00 | AY12: 0.00 | AZ12: -1.00 | BA12: -1.00 | BC12: =IF(AO12>=0,0,COUNTIF($AO$10:AO12,"<0")) -> 0.00 | BD12: 0.00 | BE12: -1.00 | BF12: -1.00
B13: 113.1 | C13: 0.0 | D13: 0.030 | E13: 0.970 | F13: 1252.6 | G13: 745.1 | H13: 1.000 | I13: 1.000 | J13: 1.648 | K13: 0.980 | L13: 1.681 | M13: 0.049 | N13: 0.951 | O13: 1.000 | P13: 113.1476737 | R13: 0.159 | S13: 0.232 | T13: 0.073 | V13: =W12 -> 0.68 | W13: 0.54 | X13: =W13-W12 -> -0.14 | Z13: 0.436 | AA13: 0.53 | AD13: 0.100 | AE13: 0.10 | AF13: 0.44 | AG13: 0.10 | AH13: =IF(AI12>=$I$7,AI12,IF(AI12<=$AC$11,VLOOKUP(AI12,$AE$10:$AG$110,3),VLOOKUP(AI12,$AA$10:$AF$110,6))) -> 0.14 | AI13: 0.22 | AJ13: 0.06 | AK13: =IF(AH13>=$AB$11,COUNTIF($AJ$10:AJ13,">0")-1,99999) -> 99999.00 | AM13: 0.71 | AN13: =IF(AN12<=$I$6,AN12,VLOOKUP(AM12,$C$10:$D$110,2)) -> 0.57 | AO13: -0.11 | AP13: =IF(AM13<=$AB$11,COUNTIF($AO$10:AO13,"<0"),99999) -> 99999.00 | AR13: =I7 -> 0.80 | AS13: =I6 -> 0.10 | AT13: 0.00 | AU13: 0.03 | AV13: 0.05 | AX13: =IF(AJ13<=0,0,COUNTIF($AJ$10:AJ13,">0")-1) -> 2.00 | AY13: 109.66 | AZ13: 0.14 | BA13: 0.22 | BC13: =IF(AO13>=0,0,COUNTIF($AO$10:AO13,"<0")) -> 2.00 | BD13: 102.92 | BE13: 0.57 | BF13: 0.71
B14: 112.9 | C14: 0.1 | D14: 0.040 | E14: 0.960 | F14: 1245.7 | G14: 739.8 | H14: 1.000 | I14: 1.000 | J14: 1.639 | K14: 0.973 | L14: 1.684 | M14: 0.066 | N14: 0.934 | O14: 1.000 | P14: 112.9412442 | R14: 0.232 | S14: 0.232 | T14: 0.000 | V14: 0.54 | W14: 0.54 | X14: 0 | Z14: 0.436 | AA14: 0.53 | AD14: 0.100 | AE14: 0.10 | AF14: 0.44 | AG14: 0.10 | AH14: 0.19 | AI14: 0.22 | AJ14: 0.00 | AK14: =IF(AH14>=$AB$11,COUNTIF($AJ$10:AJ14,">0")-1,99999) -> 99999.00 | AM14: 0.63 | AN14: 0.57 | AO14: 0.00 | AP14: =IF(AM14<=$AB$11,COUNTIF($AO$10:AO14,"<0"),99999) -> 99999.00 | AR14: =IF($M$3=1,VLOOKUP($I$5,$D$10:$M$110,10),VLOOKUP(1,AT10:AV110,3,FALSE)) -> 0.54 | AS14: =AR14 -> 0.54 | AT14: 0.00 | AU14: 0.04 | AV14: 0.07 | AX14: =IF(AJ14<=0,0,COUNTIF($AJ$10:AJ14,">0")-1) -> 0.00 | AY14: 0.00 | AZ14: -1.00 | BA14: -1.00 | BC14: =IF(AO14>=0,0,COUNTIF($AO$10:AO14,"<0")) -> 0.00 | BD14: 0.00 | BE14: -1.00 | BF14: -1.00
B15: 112.7 | C15: 0.1 | D15: 0.050 | E15: 0.950 | F15: 1239.1 | G15: 734.8 | H15: 1.000 | I15: 1.000 | J15: 1.630 | K15: 0.967 | L15: 1.686 | M15: 0.082 | N15: 0.918 | O15: 1.000 | P15: 112.7463204 | R15: 0.232 | S15: 0.341 | T15: 0.109 | V15: 0.54 | W15: 0.39 | X15: -0.15 | Z15: 0.436 | AA15: 0.53 | AD15: 0.100 | AE15: 0.10 | AF15: 0.44 | AG15: 0.10 | AH15: 0.19 | AI15: 0.29 | AJ15: 0.07 | AK15: =IF(AH15>=$AB$11,COUNTIF($AJ$10:AJ15,">0")-1,99999) -> 99999.00 | AM15: 0.63 | AN15: 0.48 | AO15: -0.09 | AP15: =IF(AM15<=$AB$11,COUNTIF($AO$10:AO15,"<0"),99999) -> 99999.00 | AT15: 0.00 | AU15: 0.05 | AV15: 0.08 | AX15: =IF(AJ15<=0,0,COUNTIF($AJ$10:AJ15,">0")-1) -> 3.00 | AY15: 108.32 | AZ15: 0.19 | BA15: 0.29 | BC15: =IF(AO15>=0,0,COUNTIF($AO$10:AO15,"<0")) -> 3.00 | BD15: 104.58 | BE15: 0.48 | BF15: 0.63
B16: 112.6 | C16: 0.1 | D16: 0.060 | E16: 0.940 | F16: 1232.6 | G16: 729.8 | H16: 1.000 | I16: 1.000 | J16: 1.622 | K16: 0.960 | L16: 1.689 | M16: 0.097 | N16: 0.903 | O16: 1.000 | P16: 112.5511479 | R16: 0.341 | S16: 0.341 | T16: 0.000 | V16: 0.39 | W16: 0.39 | X16: 0 | Z16: 0.436 | AA16: 0.53 | AD16: 0.100 | AE16: 0.10 | AF16: 0.44 | AG16: 0.10 | AH16: 0.24 | AI16: 0.29 | AJ16: 0.00 | AK16: =IF(AH16>=$AB$11,COUNTIF($AJ$10:AJ16,">0")-1,99999) -> 99999.00 | AM16: 0.56 | AN16: =IF(AN15<=$I$6,AN15,VLOOKUP(AM15,$C$10:$D$110,2)) -> 0.48 | AO16: 0.00 | AP16: =IF(AM16<=$AB$11,COUNTIF($AO$10:AO16,"<0"),99999) -> 99999.00 | AT16: 0.00 | AU16: 0.06 | AV16: 0.10 | AX16: =IF(AJ16<=0,0,COUNTIF($AJ$10:AJ16,">0")-1) -> 0.00 | AY16: 0.00 | AZ16: -1.00 | BA16: -1.00 | BC16: =IF(AO16>=0,0,COUNTIF($AO$10:AO16,"<0")) -> 0.00 | BD16: 0.00 | BE16: -1.00 | BF16: -1.00
B17: 112.4 | C17: 0.1 | D17: 0.070 | E17: 0.930 | F17: 1226.1 | G17: 724.8 | H17: 1.000 | I17: 1.000 | J17: 1.613 | K17: 0.954 | L17: 1.692 | M17: 0.113 | N17: 0.887 | O17: 1.000 | P17: 112.3557334 | R17: 0.341 | S17: 0.476 | T17: 0.135 | V17: 0.39 | W17: 0.26 | X17: -0.13 | Z17: 0.436 | AA17: 0.53 | AD17: 0.100 | AE17: 0.10 | AF17: 0.44 | AG17: 0.10 | AH17: =IF(AI16>=$I$7,AI16,IF(AI16<=$AC$11,VLOOKUP(AI16,$AE$10:$AG$110,3),VLOOKUP(AI16,$AA$10:$AF$110,6))) -> 0.24 | AI17: 0.35 | AJ17: 0.07 | AK17: =IF(AH17>=$AB$11,COUNTIF($AJ$10:AJ17,">0")-1,99999) -> 99999.00 | AM17: 0.56 | AN17: 0.41 | AO17: -0.07 | AP17: =IF(AM17<=$AB$11,COUNTIF($AO$10:AO17,"<0"),99999) -> 99999.00 | AT17: 0.00 | AU17: 0.07 | AV17: 0.11 | AX17: =IF(AJ17<=0,0,COUNTIF($AJ$10:AJ17,">0")-1) -> 4.00 | AY17: 107.00 | AZ17: 0.24 | BA17: 0.35 | BC17: =IF(AO17>=0,0,COUNTIF($AO$10:AO17,"<0")) -> 4.00 | BD17: 105.87 | BE17: 0.41 | BF17: 0.56
B18: 112.2 | C18: 0.1 | D18: 0.080 | E18: 0.920 | F18: 1219.6 | G18: 719.9 | H18: 1.000 | I18: 1.000 | J18: 1.605 | K18: 0.947 | L18: 1.694 | M18: 0.128 | N18: 0.871 | O18: 1.000 | P18: 112.1601077 | R18: 0.476 | S18: 0.476 | T18: 0.000 | V18: 0.26 | W18: 0.26 | X18: 0 | Z18: 0.436 | AA18: 0.53 | AD18: 0.100 | AE18: 0.10 | AF18: 0.44 | AG18: 0.10 | AH18: 0.29 | AI18: 0.35 | AJ18: 0.00 | AK18: =IF(AH18>=$AB$11,COUNTIF($AJ$10:AJ18,">0")-1,99999) -> 99999.00 | AM18: 0.49 | AN18: 0.41 | AO18: 0.00 | AP18: =IF(AM18<=$AB$11,COUNTIF($AO$10:AO18,"<0"),99999) -> 99999.00 | AT18: 0.00 | AU18: 0.08 | AV18: 0.13 | AX18: =IF(AJ18<=0,0,COUNTIF($AJ$10:AJ18,">0")-1) -> 0.00 | AY18: 0.00 | AZ18: -1.00 | BA18: -1.00 | BC18: =IF(AO18>=0,0,COUNTIF($AO$10:AO18,"<0")) -> 0.00 | BD18: 0.00 | BE18: -1.00 | BF18: -1.00
B19: 112.0 | C19: 0.1 | D19: 0.090 | E19: 0.910 | F19: 1213.2 | G19: 715.0 | H19: 1.000 | I19: 1.000 | J19: 1.596 | K19: 0.941 | L19: 1.697 | M19: 0.144 | N19: 0.856 | O19: 1.000 | P19: 111.9643076 | R19: 0.476 | S19: 0.614 | T19: 0.139 | V19: 0.26 | W19: 0.16 | X19: -0.1 | Z19: 0.436 | AA19: 0.53 | AD19: 0.100 | AE19: 0.10 | AF19: 0.44 | AG19: 0.10 | AH19: 0.29 | AI19: 0.42 | AJ19: 0.06 | AK19: =IF(AH19>=$AB$11,COUNTIF($AJ$10:AJ19,">0")-1,99999) -> 99999.00 | AM19: 0.49 | AN19: 0.35 | AO19: -0.06 | AP19: =IF(AM19<=$AB$11,COUNTIF($AO$10:AO19,"<0"),99999) -> 99999.00 | AT19: 0.00 | AU19: 0.09 | AV19: 0.14 | AX19: =IF(AJ19<=0,0,COUNTIF($AJ$10:AJ19,">0")-1) -> 5.00 | AY19: 105.87 | AZ19: 0.29 | BA19: 0.42 | BC19: =IF(AO19>=0,0,COUNTIF($AO$10:AO19,"<0")) -> 5.00 | BD19: 107.00 | BE19: 0.35 | BF19: 0.49
B20: 111.8 | C20: 0.2 | D20: 0.100 | E20: 0.900 | F20: 1206.7 | G20: 710.1 | H20: 1.000 | I20: 1.000 | J20: 1.588 | K20: 0.934 | L20: 1.699 | M20: 0.159 | N20: 0.841 | O20: 1.000 | P20: 111.7683844 | R20: 0.614 | S20: 0.614 | T20: 0.000 | V20: 0.16 | W20: 0.16 | X20: 0 | Z20: 0.436 | AA20: 0.53 | AD20: 0.100 | AE20: 0.10 | AF20: 0.44 | AG20: 0.10 | AH20: 0.34 | AI20: 0.42 | AJ20: 0.00 | AK20: =IF(AH20>=$AB$11,COUNTIF($AJ$10:AJ20,">0")-1,99999) -> 99999.00 | AM20: 0.42 | AN20: 0.35 | AO20: 0.00 | AP20: =IF(AM20<=$AB$11,COUNTIF($AO$10:AO20,"<0"),99999) -> 5.00 | AT20: 0.00 | AU20: 0.10 | AV20: 0.16 | AX20: =IF(AJ20<=0,0,COUNTIF($AJ$10:AJ20,">0")-1) -> 0.00 | AY20: 0.00 | AZ20: -1.00 | BA20: -1.00 | BC20: =IF(AO20>=0,0,COUNTIF($AO$10:AO20,"<0")) -> 0.00 | BD20: 0.00 | BE20: -1.00 | BF20: -1.00
B21: 111.6 | C21: 0.2 | D21: 0.110 | E21: 0.890 | F21: 1200.3 | G21: 705.2 | H21: 1.000 | I21: 1.000 | J21: 1.579 | K21: 0.928 | L21: 1.702 | M21: 0.174 | N21: 0.826 | O21: 1.000 | P21: 111.5723926 | R21: 0.614 | S21: 0.741 | T21: 0.127 | V21: 0.16 | W21: 0.1 | X21: -0.06 | Z21: 0.436 | AA21: 0.53 | AD21: 0.110 | AE21: 0.11 | AF21: 0.44 | AG21: 0.11 | AH21: 0.34 | AI21: 0.48 | AJ21: 0.06 | AK21: =IF(AH21>=$AB$11,COUNTIF($AJ$10:AJ21,">0")-1,99999) -> 99999.00 | AM21: 0.42 | AN21: 0.29 | AO21: -0.06 | AP21: =IF(AM21<=$AB$11,COUNTIF($AO$10:AO21,"<0"),99999) -> 6.00 | AT21: 0.00 | AU21: 0.11 | AV21: 0.17 | AX21: =IF(AJ21<=0,0,COUNTIF($AJ$10:AJ21,">0")-1) -> 6.00 | AY21: 104.76 | AZ21: 0.34 | BA21: 0.48 | BC21: =IF(AO21>=0,0,COUNTIF($AO$10:AO21,"<0")) -> 6.00 | BD21: 108.13 | BE21: 0.29 | BF21: 0.42
B22: 111.4 | C22: 0.2 | D22: 0.120 | E22: 0.880 | F22: 1193.9 | G22: 700.4 | H22: 1.000 | I22: 1.000 | J22: 1.571 | K22: 0.922 | L22: 1.705 | M22: 0.189 | N22: 0.811 | O22: 1.000 | P22: 111.3763882 | R22: 0.741 | S22: 0.741 | T22: 0.000 | V22: 0.1 | W22: 0.1 | X22: 0 | Z22: 0.436 | AA22: 0.53 | AD22: 0.120 | AE22: 0.13 | AF22: 0.44 | AG22: 0.12 | AH22: 0.39 | AI22: 0.48 | AJ22: 0.00 | AK22: =IF(AH22>=$AB$11,COUNTIF($AJ$10:AJ22,">0")-1,99999) -> 99999.00 | AM22: 0.34 | AN22: 0.29 | AO22: 0.00 | AP22: =IF(AM22<=$AB$11,COUNTIF($AO$10:AO22,"<0"),99999) -> 6.00 | AT22: 0.00 | AU22: 0.12 | AV22: 0.19 | AX22: =IF(AJ22<=0,0,COUNTIF($AJ$10:AJ22,">0")-1) -> 0.00 | AY22: 0.00 | AZ22: -1.00 | BA22: -1.00 | BC22: =IF(AO22>=0,0,COUNTIF($AO$10:AO22,"<0")) -> 0.00 | BD22: 0.00 | BE22: -1.00 | BF22: -1.00
B23: 111.2 | C23: 0.2 | D23: 0.130 | E23: 0.870 | F23: 1187.5 | G23: 695.6 | H23: 1.000 | I23: 1.000 | J23: 1.563 | K23: 0.915 | L23: 1.707 | M23: 0.203 | N23: 0.796 | O23: 0.999 | P23: 111.1804269 | R23: 0.741 | S23: 0.841 | T23: 0.100 | V23: 0.1 | W23: 0.1 | X23: 0 | Z23: 0.436 | AA23: 0.53 | AD23: 0.130 | AE23: 0.14 | AF23: 0.44 | AG23: 0.13 | AH23: 0.39 | AI23: 0.53 | AJ23: 0.06 | AK23: =IF(AH23>=$AB$11,COUNTIF($AJ$10:AJ23,">0")-1,99999) -> 99999.00 | AM23: 0.34 | AN23: 0.23 | AO23: -0.06 | AP23: =IF(AM23<=$AB$11,COUNTIF($AO$10:AO23,"<0"),99999) -> 7.00 | AT23: 0.00 | AU23: 0.13 | AV23: 0.20 | AX23: =IF(AJ23<=0,0,COUNTIF($AJ$10:AJ23,">0")-1) -> 7.00 | AY23: 103.64 | AZ23: 0.39 | BA23: 0.53 | BC23: =IF(AO23>=0,0,COUNTIF($AO$10:AO23,"<0")) -> 7.00 | BD23: 109.27 | BE23: 0.23 | BF23: 0.34
B24: 111.0 | C24: 0.2 | D24: 0.140 | E24: 0.860 | F24: 1181.2 | G24: 690.9 | H24: 1.000 | I24: 1.000 | J24: 1.554 | K24: 0.909 | L24: 1.710 | M24: 0.218 | N24: 0.782 | O24: 0.999 | P24: 110.9845621 | R24: 0.841 | S24: 0.841 | T24: 0.000 | V24: 0.1 | W24: 0.1 | X24: 0 | Z24: 0.436 | AA24: 0.53 | AD24: 0.140 | AE24: 0.15 | AF24: 0.44 | AG24: 0.14 | AH24: 0.44 | AI24: 0.53 | AJ24: 0.00 | AK24: =IF(AH24>=$AB$11,COUNTIF($AJ$10:AJ24,">0")-1,99999) -> 7.00 | AM24: 0.27 | AN24: 0.23 | AO24: 0.00 | AP24: =IF(AM24<=$AB$11,COUNTIF($AO$10:AO24,"<0"),99999) -> 7.00 | AT24: 0.00 | AU24: 0.14 | AV24: 0.22 | AX24: =IF(AJ24<=0,0,COUNTIF($AJ$10:AJ24,">0")-1) -> 0.00 | AY24: 0.00 | AZ24: -1.00 | BA24: -1.00 | BC24: =IF(AO24>=0,0,COUNTIF($AO$10:AO24,"<0")) -> 0.00 | BD24: 0.00 | BE24: -1.00 | BF24: -1.00
B25: 110.8 | C25: 0.2 | D25: 0.150 | E25: 0.850 | F25: 1174.9 | G25: 686.1 | H25: 1.000 | I25: 1.000 | J25: 1.546 | K25: 0.903 | L25: 1.712 | M25: 0.232 | N25: 0.767 | O25: 0.999 | P25: 110.7888445 | R25: 0.841 | S25: 0.841 | T25: 0.000 | V25: 0.1 | W25: 0.1 | X25: 0 | Z25: 0.436 | AA25: 0.53 | AD25: 0.150 | AE25: 0.16 | AF25: 0.44 | AG25: 0.15 | AH25: 0.44 | AI25: 0.58 | AJ25: 0.05 | AK25: =IF(AH25>=$AB$11,COUNTIF($AJ$10:AJ25,">0")-1,99999) -> 8.00 | AM25: 0.27 | AN25: 0.17 | AO25: -0.06 | AP25: =IF(AM25<=$AB$11,COUNTIF($AO$10:AO25,"<0"),99999) -> 8.00 | AT25: 0.00 | AU25: 0.15 | AV25: 0.23 | AX25: =IF(AJ25<=0,0,COUNTIF($AJ$10:AJ25,">0")-1) -> 8.00 | AY25: 102.74 | AZ25: 0.44 | BA25: 0.58 | BC25: =IF(AO25>=0,0,COUNTIF($AO$10:AO25,"<0")) -> 8.00 | BD25: 110.40 | BE25: 0.17 | BF25: 0.27
B26: 110.6 | C26: 0.2 | D26: 0.160 | E26: 0.840 | F26: 1168.6 | G26: 681.4 | H26: 1.000 | I26: 1.000 | J26: 1.538 | K26: 0.897 | L26: 1.715 | M26: 0.246 | N26: 0.753 | O26: 0.999 | P26: 110.5933205 | R26: 0.841 | S26: 0.841 | T26: 0.000 | V26: 0.1 | W26: 0.1 | X26: 0 | Z26: 0.436 | AA26: 0.53 | AD26: 0.160 | AE26: 0.18 | AF26: 0.44 | AG26: 0.16 | AH26: 0.51 | AI26: 0.58 | AJ26: 0.00 | AK26: =IF(AH26>=$AB$11,COUNTIF($AJ$10:AJ26,">0")-1,99999) -> 8.00 | AM26: 0.19 | AN26: 0.17 | AO26: 0.00 | AP26: =IF(AM26<=$AB$11,COUNTIF($AO$10:AO26,"<0"),99999) -> 8.00 | AT26: 0.00 | AU26: 0.16 | AV26: 0.25 | AX26: =IF(AJ26<=0,0,COUNTIF($AJ$10:AJ26,">0")-1) -> 0.00 | AY26: 0.00 | AZ26: -1.00 | BA26: -1.00 | BC26: =IF(AO26>=0,0,COUNTIF($AO$10:AO26,"<0")) -> 0.00 | BD26: 0.00 | BE26: -1.00 | BF26: -1.00 | BJ26: Nmín = | BK26: =COUNTIF(T10:T110,">0")-1 -> 7 | BP26: Nmín = | BQ26: =COUNTIF(X10:X110,"<0") -> 6 | BV26: L/D|mín = | BW26: =((AR13-AR14)/(AR10-AR11))/(1-(AR13-AR14)/(AR10-AR11)) -> 2.03
B27: 110.4 | C27: 0.3 | D27: 0.170 | E27: 0.830 | F27: 1162.4 | G27: 676.7 | H27: 1.000 | I27: 1.000 | J27: 1.529 | K27: 0.890 | L27: 1.718 | M27: 0.260 | N27: 0.739 | O27: 0.999 | P27: 110.3980327 | R27: 0.841 | S27: 0.841 | T27: 0.000 | V27: 0.1 | W27: 0.1 | X27: 0 | Z27: 0.436 | AA27: 0.53 | AD27: 0.170 | AE27: 0.19 | AF27: 0.44 | AG27: 0.17 | AH27: 0.51 | AI27: 0.65 | AJ27: 0.07 | AK27: =IF(AH27>=$AB$11,COUNTIF($AJ$10:AJ27,">0")-1,99999) -> 9.00 | AM27: 0.19 | AN27: 0.12 | AO27: -0.05 | AP27: =IF(AM27<=$AB$11,COUNTIF($AO$10:AO27,"<0"),99999) -> 9.00 | AT27: 0.00 | AU27: 0.17 | AV27: 0.26 | AX27: =IF(AJ27<=0,0,COUNTIF($AJ$10:AJ27,">0")-1) -> 9.00 | AY27: 101.50 | AZ27: 0.51 | BA27: 0.65 | BC27: =IF(AO27>=0,0,COUNTIF($AO$10:AO27,"<0")) -> 9.00 | BD27: 111.38 | BE27: 0.12 | BF27: 0.19
B28: 110.2 | C28: 0.3 | D28: 0.180 | E28: 0.820 | F28: 1157.1 | G28: 672.8 | H28: 1.000 | I28: 1.000 | J28: 1.523 | K28: 0.885 | L28: 1.720 | M28: 0.274 | N28: 0.726 | O28: 1.000 | P28: 110.2330553 | R28: 0.841 | S28: 0.841 | T28: 0.000 | V28: 0.1 | W28: 0.1 | X28: 0 | Z28: 0.436 | AA28: 0.53 | AD28: 0.180 | AE28: 0.20 | AF28: 0.44 | AG28: 0.18 | AH28: 0.60 | AI28: 0.65 | AJ28: 0.00 | AK28: =IF(AH28>=$AB$11,COUNTIF($AJ$10:AJ28,">0")-1,99999) -> 9.00 | AM28: 0.13 | AN28: 0.12 | AO28: 0.00 | AP28: =IF(AM28<=$AB$11,COUNTIF($AO$10:AO28,"<0"),99999) -> 9.00 | AT28: 0.00 | AU28: 0.18 | AV28: 0.27 | AX28: =IF(AJ28<=0,0,COUNTIF($AJ$10:AJ28,">0")-1) -> 0.00 | AY28: 0.00 | AZ28: -1.00 | BA28: -1.00 | BC28: =IF(AO28>=0,0,COUNTIF($AO$10:AO28,"<0")) -> 0.00 | BD28: 0.00 | BE28: -1.00 | BF28: -1.00
B29: 110.0 | C29: 0.3 | D29: 0.190 | E29: 0.810 | F29: 1151.0 | G29: 668.3 | H29: 1.000 | I29: 1.000 | J29: 1.515 | K29: 0.879 | L29: 1.722 | M29: 0.288 | N29: 0.712 | O29: 1.000 | P29: 110.0407798 | R29: 0.841 | S29: 0.841 | T29: 0.000 | V29: 0.1 | W29: 0.1 | X29: 0 | Z29: 0.436 | AA29: 0.53 | AD29: 0.190 | AE29: 0.21 | AF29: 0.44 | AG29: 0.19 | AH29: 0.60 | AI29: 0.73 | AJ29: 0.08 | AK29: =IF(AH29>=$AB$11,COUNTIF($AJ$10:AJ29,">0")-1,99999) -> 10.00 | AM29: 0.13 | AN29: 0.07 | AO29: -0.05 | AP29: =IF(AM29<=$AB$11,COUNTIF($AO$10:AO29,"<0"),99999) -> 10.00 | AT29: 0.00 | AU29: 0.19 | AV29: 0.29 | AX29: =IF(AJ29<=0,0,COUNTIF($AJ$10:AJ29,">0")-1) -> 10.00 | AY29: 100.10 | AZ29: 0.60 | BA29: 0.73 | BC29: =IF(AO29>=0,0,COUNTIF($AO$10:AO29,"<0")) -> 10.00 | BD29: 112.36 | BE29: 0.07 | BF29: 0.13
B30: 109.8 | C30: 0.3 | D30: 0.200 | E30: 0.800 | F30: 1145.0 | G30: 663.7 | H30: 1.000 | I30: 1.000 | J30: 1.507 | K30: 0.873 | L30: 1.725 | M30: 0.301 | N30: 0.699 | O30: 1.000 | P30: 109.8487041 | R30: 0.841 | S30: 0.841 | T30: 0.000 | V30: 0.1 | W30: 0.1 | X30: 0 | Z30: 0.436 | AA30: 0.53 | AD30: 0.200 | AE30: 0.23 | AF30: 0.44 | AG30: 0.20 | AH30: 0.71 | AI30: 0.73 | AJ30: 0.00 | AK30: =IF(AH30>=$AB$11,COUNTIF($AJ$10:AJ30,">0")-1,99999) -> 10.00 | AM30: 0.07 | AN30: 0.07 | AO30: 0.00 | AP30: =IF(AM30<=$AB$11,COUNTIF($AO$10:AO30,"<0"),99999) -> 10.00 | AT30: 0.00 | AU30: 0.20 | AV30: 0.30 | AX30: =IF(AJ30<=0,0,COUNTIF($AJ$10:AJ30,">0")-1) -> 0.00 | AY30: 0.00 | AZ30: -1.00 | BA30: -1.00 | BC30: =IF(AO30>=0,0,COUNTIF($AO$10:AO30,"<0")) -> 0.00 | BD30: 0.00 | BE30: -1.00 | BF30: -1.00
B31: 109.7 | C31: 0.3 | D31: 0.210 | E31: 0.790 | F31: 1139.0 | G31: 659.3 | H31: 1.000 | I31: 1.000 | J31: 1.499 | K31: 0.867 | L31: 1.728 | M31: 0.315 | N31: 0.685 | O31: 1.000 | P31: 109.6568354 | R31: 0.841 | S31: 0.841 | T31: 0.000 | V31: 0.1 | W31: 0.1 | X31: 0 | Z31: 0.436 | AA31: 0.53 | AD31: 0.210 | AE31: 0.24 | AF31: 0.44 | AG31: 0.21 | AH31: 0.71 | AI31: 0.82 | AJ31: 0.09 | AK31: =IF(AH31>=$AB$11,COUNTIF($AJ$10:AJ31,">0")-1,99999) -> 11.00 | AM31: 0.07 | AN31: 0.07 | AO31: 0.00 | AP31: =IF(AM31<=$AB$11,COUNTIF($AO$10:AO31,"<0"),99999) -> 10.00 | AT31: 0.00 | AU31: 0.21 | AV31: 0.31 | AX31: =IF(AJ31<=0,0,COUNTIF($AJ$10:AJ31,">0")-1) -> 11.00 | AY31: 98.73 | AZ31: 0.71 | BA31: 0.82 | BC31: =IF(AO31>=0,0,COUNTIF($AO$10:AO31,"<0")) -> 0.00 | BD31: 0.00 | BE31: -1.00 | BF31: -1.00
B32: 109.5 | C32: 0.3 | D32: 0.220 | E32: 0.780 | F32: 1133.0 | G32: 654.8 | H32: 1.000 | I32: 1.000 | J32: 1.491 | K32: 0.862 | L32: 1.730 | M32: 0.328 | N32: 0.672 | O32: 1.000 | P32: 109.4651808 | R32: 0.841 | S32: 0.841 | T32: 0.000 | V32: 0.1 | W32: 0.1 | X32: 0 | Z32: 0.436 | AA32: 0.53 | AD32: 0.220 | AE32: 0.25 | AF32: 0.44 | AG32: 0.22 | AH32: 0.82 | AI32: 0.82 | AJ32: 0.00 | AK32: =IF(AH32>=$AB$11,COUNTIF($AJ$10:AJ32,">0")-1,99999) -> 11.00 | AM32: 0.07 | AN32: 0.07 | AO32: 0.00 | AP32: =IF(AM32<=$AB$11,COUNTIF($AO$10:AO32,"<0"),99999) -> 10.00 | AT32: 0.00 | AU32: 0.22 | AV32: 0.33 | AX32: =IF(AJ32<=0,0,COUNTIF($AJ$10:AJ32,">0")-1) -> 0.00 | AY32: 0.00 | AZ32: -1.00 | BA32: -1.00 | BC32: =IF(AO32>=0,0,COUNTIF($AO$10:AO32,"<0")) -> 0.00 | BD32: 0.00 | BE32: -1.00 | BF32: -1.00
B33: 109.3 | C33: 0.3 | D33: 0.230 | E33: 0.770 | F33: 1127.0 | G33: 650.4 | H33: 1.000 | I33: 1.000 | J33: 1.483 | K33: 0.856 | L33: 1.733 | M33: 0.341 | N33: 0.659 | O33: 1.000 | P33: 109.2737476 | R33: 0.841 | S33: 0.841 | T33: 0.000 | V33: 0.1 | W33: 0.1 | X33: 0 | Z33: 0.436 | AA33: 0.53 | AD33: 0.230 | AE33: 0.27 | AF33: 0.44 | AG33: 0.23 | AH33: 0.82 | AI33: 0.82 | AJ33: 0.00 | AK33: =IF(AH33>=$AB$11,COUNTIF($AJ$10:AJ33,">0")-1,99999) -> 11.00 | AM33: 0.07 | AN33: 0.07 | AO33: 0.00 | AP33: =IF(AM33<=$AB$11,COUNTIF($AO$10:AO33,"<0"),99999) -> 10.00 | AT33: 0.00 | AU33: 0.23 | AV33: 0.34 | AX33: =IF(AJ33<=0,0,COUNTIF($AJ$10:AJ33,">0")-1) -> 0.00 | AY33: 0.00 | AZ33: -1.00 | BA33: -1.00 | BC33: =IF(AO33>=0,0,COUNTIF($AO$10:AO33,"<0")) -> 0.00 | BD33: 0.00 | BE33: -1.00 | BF33: -1.00
B34: 109.1 | C34: 0.4 | D34: 0.240 | E34: 0.760 | F34: 1121.0 | G34: 646.0 | H34: 1.000 | I34: 1.000 | J34: 1.475 | K34: 0.850 | L34: 1.735 | M34: 0.354 | N34: 0.646 | O34: 1.000 | P34: 109.0825427 | R34: 0.841 | S34: 0.841 | T34: 0.000 | V34: 0.1 | W34: 0.1 | X34: 0 | Z34: 0.436 | AA34: 0.53 | AD34: 0.240 | AE34: 0.28 | AF34: 0.44 | AG34: 0.24 | AH34: 0.82 | AI34: 0.82 | AJ34: 0.00 | AK34: =IF(AH34>=$AB$11,COUNTIF($AJ$10:AJ34,">0")-1,99999) -> 11.00 | AM34: 0.07 | AN34: 0.07 | AO34: 0.00 | AP34: =IF(AM34<=$AB$11,COUNTIF($AO$10:AO34,"<0"),99999) -> 10.00 | AT34: 0.00 | AU34: 0.24 | AV34: 0.35 | AX34: =IF(AJ34<=0,0,COUNTIF($AJ$10:AJ34,">0")-1) -> 0.00 | AY34: 0.00 | AZ34: -1.00 | BA34: -1.00 | BC34: =IF(AO34>=0,0,COUNTIF($AO$10:AO34,"<0")) -> 0.00 | BD34: 0.00 | BE34: -1.00 | BF34: -1.00
B35: 108.9 | C35: 0.4 | D35: 0.250 | E35: 0.750 | F35: 1115.1 | G35: 641.6 | H35: 1.000 | I35: 1.000 | J35: 1.467 | K35: 0.844 | L35: 1.738 | M35: 0.367 | N35: 0.633 | O35: 1.000 | P35: 108.8915729 | R35: 0.841 | S35: 0.841 | T35: 0.000 | V35: 0.1 | W35: 0.1 | X35: 0 | Z35: 0.436 | AA35: 0.53 | AD35: 0.250 | AE35: 0.29 | AF35: 0.44 | AG35: 0.25 | AH35: 0.82 | AI35: 0.82 | AJ35: 0.00 | AK35: =IF(AH35>=$AB$11,COUNTIF($AJ$10:AJ35,">0")-1,99999) -> 11.00 | AM35: 0.07 | AN35: 0.07 | AO35: 0.00 | AP35: =IF(AM35<=$AB$11,COUNTIF($AO$10:AO35,"<0"),99999) -> 10.00 | AT35: 0.00 | AU35: 0.25 | AV35: 0.37 | AX35: =IF(AJ35<=0,0,COUNTIF($AJ$10:AJ35,">0")-1) -> 0.00 | AY35: 0.00 | AZ35: -1.00 | BA35: -1.00 | BC35: =IF(AO35>=0,0,COUNTIF($AO$10:AO35,"<0")) -> 0.00 | BD35: 0.00 | BE35: -1.00 | BF35: -1.00
B36: 108.7 | C36: 0.4 | D36: 0.260 | E36: 0.740 | F36: 1109.3 | G36: 637.3 | H36: 1.000 | I36: 1.000 | J36: 1.460 | K36: 0.839 | L36: 1.741 | M36: 0.379 | N36: 0.621 | O36: 1.000 | P36: 108.700845 | R36: 0.841 | S36: 0.841 | T36: 0.000 | V36: 0.1 | W36: 0.1 | X36: 0 | Z36: 0.436 | AA36: 0.53 | AD36: 0.260 | AE36: 0.30 | AF36: 0.44 | AG36: 0.26 | AH36: 0.82 | AI36: 0.82 | AJ36: 0.00 | AK36: =IF(AH36>=$AB$11,COUNTIF($AJ$10:AJ36,">0")-1,99999) -> 11.00 | AM36: 0.07 | AN36: 0.07 | AO36: 0.00 | AP36: =IF(AM36<=$AB$11,COUNTIF($AO$10:AO36,"<0"),99999) -> 10.00 | AT36: 0.00 | AU36: 0.26 | AV36: 0.38 | AX36: =IF(AJ36<=0,0,COUNTIF($AJ$10:AJ36,">0")-1) -> 0.00 | AY36: 0.00 | AZ36: -1.00 | BA36: -1.00 | BC36: =IF(AO36>=0,0,COUNTIF($AO$10:AO36,"<0")) -> 0.00 | BD36: 0.00 | BE36: -1.00 | BF36: -1.00
B37: 108.5 | C37: 0.4 | D37: 0.270 | E37: 0.730 | F37: 1103.4 | G37: 633.0 | H37: 1.000 | I37: 1.000 | J37: 1.452 | K37: 0.833 | L37: 1.743 | M37: 0.392 | N37: 0.608 | O37: 1.000 | P37: 108.5103654 | R37: 0.841 | S37: 0.841 | T37: 0.000 | V37: 0.1 | W37: 0.1 | X37: 0 | Z37: 0.436 | AA37: 0.53 | AD37: 0.270 | AE37: 0.32 | AF37: 0.44 | AG37: 0.27 | AH37: 0.82 | AI37: 0.82 | AJ37: 0.00 | AK37: =IF(AH37>=$AB$11,COUNTIF($AJ$10:AJ37,">0")-1,99999) -> 11.00 | AM37: 0.07 | AN37: 0.07 | AO37: 0.00 | AP37: =IF(AM37<=$AB$11,COUNTIF($AO$10:AO37,"<0"),99999) -> 10.00 | AT37: 0.00 | AU37: 0.27 | AV37: 0.39 | AX37: =IF(AJ37<=0,0,COUNTIF($AJ$10:AJ37,">0")-1) -> 0.00 | AY37: 0.00 | AZ37: -1.00 | BA37: -1.00 | BC37: =IF(AO37>=0,0,COUNTIF($AO$10:AO37,"<0")) -> 0.00 | BD37: 0.00 | BE37: -1.00 | BF37: -1.00
B38: 108.3 | C38: 0.4 | D38: 0.280 | E38: 0.720 | F38: 1097.6 | G38: 628.7 | H38: 1.000 | I38: 1.000 | J38: 1.444 | K38: 0.827 | L38: 1.746 | M38: 0.404 | N38: 0.596 | O38: 1.000 | P38: 108.3201407 | R38: 0.841 | S38: 0.841 | T38: 0.000 | V38: 0.1 | W38: 0.1 | X38: 0 | Z38: 0.436 | AA38: 0.53 | AD38: 0.280 | AE38: 0.33 | AF38: 0.44 | AG38: 0.28 | AH38: 0.82 | AI38: 0.82 | AJ38: 0.00 | AK38: =IF(AH38>=$AB$11,COUNTIF($AJ$10:AJ38,">0")-1,99999) -> 11.00 | AM38: 0.07 | AN38: 0.07 | AO38: 0.00 | AP38: =IF(AM38<=$AB$11,COUNTIF($AO$10:AO38,"<0"),99999) -> 10.00 | AT38: 0.00 | AU38: 0.28 | AV38: 0.40 | AX38: =IF(AJ38<=0,0,COUNTIF($AJ$10:AJ38,">0")-1) -> 0.00 | AY38: 0.00 | AZ38: -1.00 | BA38: -1.00 | BC38: =IF(AO38>=0,0,COUNTIF($AO$10:AO38,"<0")) -> 0.00 | BD38: 0.00 | BE38: -1.00 | BF38: -1.00
B39: 108.1 | C39: 0.4 | D39: 0.290 | E39: 0.710 | F39: 1091.8 | G39: 624.4 | H39: 1.000 | I39: 1.000 | J39: 1.437 | K39: 0.822 | L39: 1.748 | M39: 0.417 | N39: 0.583 | O39: 1.000 | P39: 108.1301772 | R39: 0.841 | S39: 0.841 | T39: 0.000 | V39: 0.1 | W39: 0.1 | X39: 0 | Z39: 0.436 | AA39: 0.53 | AD39: 0.290 | AE39: 0.34 | AF39: 0.44 | AG39: 0.29 | AH39: 0.82 | AI39: 0.82 | AJ39: 0.00 | AK39: =IF(AH39>=$AB$11,COUNTIF($AJ$10:AJ39,">0")-1,99999) -> 11.00 | AM39: 0.07 | AN39: 0.07 | AO39: 0.00 | AP39: =IF(AM39<=$AB$11,COUNTIF($AO$10:AO39,"<0"),99999) -> 10.00 | AT39: 0.00 | AU39: 0.29 | AV39: 0.42 | AX39: =IF(AJ39<=0,0,COUNTIF($AJ$10:AJ39,">0")-1) -> 0.00 | AY39: 0.00 | AZ39: -1.00 | BA39: -1.00 | BC39: =IF(AO39>=0,0,COUNTIF($AO$10:AO39,"<0")) -> 0.00 | BD39: 0.00 | BE39: -1.00 | BF39: -1.00
B40: 107.9 | C40: 0.4 | D40: 0.300 | E40: 0.700 | F40: 1086.1 | G40: 620.2 | H40: 1.000 | I40: 1.000 | J40: 1.429 | K40: 0.816 | L40: 1.751 | M40: 0.429 | N40: 0.571 | O40: 1.000 | P40: 107.940481 | R40: 0.841 | S40: 0.841 | T40: 0.000 | V40: 0.1 | W40: 0.1 | X40: 0 | Z40: 0.436 | AA40: 0.53 | AD40: 0.300 | AE40: 0.35 | AF40: 0.44 | AG40: 0.30 | AH40: 0.82 | AI40: 0.82 | AJ40: 0.00 | AK40: =IF(AH40>=$AB$11,COUNTIF($AJ$10:AJ40,">0")-1,99999) -> 11.00 | AM40: 0.07 | AN40: 0.07 | AO40: 0.00 | AP40: =IF(AM40<=$AB$11,COUNTIF($AO$10:AO40,"<0"),99999) -> 10.00 | AT40: 0.00 | AU40: 0.30 | AV40: 0.43 | AX40: =IF(AJ40<=0,0,COUNTIF($AJ$10:AJ40,">0")-1) -> 0.00 | AY40: 0.00 | AZ40: -1.00 | BA40: -1.00 | BC40: =IF(AO40>=0,0,COUNTIF($AO$10:AO40,"<0")) -> 0.00 | BD40: 0.00 | BE40: -1.00 | BF40: -1.00
B41: 107.8 | C41: 0.4 | D41: 0.310 | E41: 0.690 | F41: 1080.4 | G41: 616.0 | H41: 1.000 | I41: 1.000 | J41: 1.422 | K41: 0.811 | L41: 1.754 | M41: 0.441 | N41: 0.559 | O41: 1.000 | P41: 107.7510583 | R41: 0.841 | S41: 0.841 | T41: 0.000 | V41: 0.1 | W41: 0.1 | X41: 0 | Z41: 0.436 | AA41: 0.53 | AD41: 0.310 | AE41: 0.37 | AF41: 0.44 | AG41: 0.31 | AH41: 0.82 | AI41: 0.82 | AJ41: 0.00 | AK41: =IF(AH41>=$AB$11,COUNTIF($AJ$10:AJ41,">0")-1,99999) -> 11.00 | AM41: 0.07 | AN41: 0.07 | AO41: 0.00 | AP41: =IF(AM41<=$AB$11,COUNTIF($AO$10:AO41,"<0"),99999) -> 10.00 | AT41: 0.00 | AU41: 0.31 | AV41: 0.44 | AX41: =IF(AJ41<=0,0,COUNTIF($AJ$10:AJ41,">0")-1) -> 0.00 | AY41: 0.00 | AZ41: -1.00 | BA41: -1.00 | BC41: =IF(AO41>=0,0,COUNTIF($AO$10:AO41,"<0")) -> 0.00 | BD41: 0.00 | BE41: -1.00 | BF41: -1.00
B42: 107.6 | C42: 0.5 | D42: 0.320 | E42: 0.680 | F42: 1074.7 | G42: =10^($D$4-$E$4/($F$4+$B42)) -> 611.9 | H42: =IF($B$6=0,1,IF(E42=0,1,EXP($B$5/(1+D42*$B$5/E42/$B$6)^2))) -> 1.000 | I42: =IF($B$5=0,1,IF(D42=0,1,EXP($B$6/(1+E42*$B$6/D42/$B$5)^2))) -> 1.000 | J42: =H42*F42/$I$2 -> 1.414 | K42: =I42*G42/$I$2 -> 0.805 | L42: 1.756 | M42: 0.453 | N42: 0.547 | O42: 1.000 | P42: 107.561915 | R42: 0.841 | S42: 0.841 | T42: 0.000 | V42: 0.1 | W42: 0.1 | X42: 0 | Z42: =IF(D42>=$I$7,$I$7,IF(D42>=$AB$11,D42,$AB$11)) -> 0.436 | AA42: =$BL$4*Z42+$BI$2/$BI$5*$I$7 -> 0.53 | AD42: =IF(D42<=$I$6,$I$6,IF(D42>=$AB$11,$AB$11,D42)) -> 0.320 | AE42: =$BL$5*AD42-$BI$3/$BI$7*$I$6 -> 0.38 | AF42: 0.44 | AG42: 0.32 | AH42: 0.82 | AI42: 0.82 | AJ42: 0.00 | AK42: =IF(AH42>=$AB$11,COUNTIF($AJ$10:AJ42,">0")-1,99999) -> 11.00 | AM42: 0.07 | AN42: 0.07 | AO42: 0.00 | AP42: =IF(AM42<=$AB$11,COUNTIF($AO$10:AO42,"<0"),99999) -> 10.00 | AT42: =IF($M$3>1,IF(M42-AV42>0,0,1),IF(M42-AV42>0,1,0)) -> 0.00 | AU42: =IF($M$3=1,$I$5,D42) -> 0.32 | AV42: =IF($M$3=1,D42,IF($M$3/($M$3-1)*AU42-$I$5/($M$3-1)>M42,M42,$M$3/($M$3-1)*AU42-$I$5/($M$3-1))) -> 0.45 | AX42: =IF(AJ42<=0,0,COUNTIF($AJ$10:AJ42,">0")-1) -> 0.00 | AY42: 0.00 | AZ42: -1.00 | BA42: -1.00 | BC42: =IF(AO42>=0,0,COUNTIF($AO$10:AO42,"<0")) -> 0.00 | BD42: 0.00 | BE42: -1.00 | BF42: -1.00
B43: 107.4 | C43: 0.5 | D43: 0.330 | E43: 0.670 | F43: 1069.0 | G43: 607.8 | H43: 1.000 | I43: 1.000 | J43: 1.407 | K43: 0.800 | L43: 1.759 | M43: 0.464 | N43: 0.536 | O43: 1.000 | P43: 107.373057 | R43: 0.841 | S43: =IF(S42>=$I$7,S42,VLOOKUP(R42,$D$10:$M$110,10)) -> 0.841 | T43: 0.000 | V43: 0.1 | W43: =IF(W42<=$I$6,W42,VLOOKUP(V42,$C$10:$D$110,2)) -> 0.1 | X43: 0 | Z43: 0.436 | AA43: 0.53 | AD43: 0.330 | AE43: 0.39 | AF43: 0.44 | AG43: 0.33 | AH43: 0.82 | AI43: 0.82 | AJ43: 0.00 | AK43: =IF(AH43>=$AB$11,COUNTIF($AJ$10:AJ43,">0")-1,99999) -> 11.00 | AM43: =IF(AN42<=$I$6,AN42,IF(AN42>=$AB$11,VLOOKUP(AN42,$Z$10:$AA$110,2),VLOOKUP(AN42,$AD$10:$AE$110,2))) -> 0.07 | AN43: 0.07 | AO43: 0.00 | AP43: =IF(AM43<=$AB$11,COUNTIF($AO$10:AO43,"<0"),99999) -> 10.00 | AT43: 0.00 | AU43: 0.33 | AV43: 0.46 | AX43: =IF(AJ43<=0,0,COUNTIF($AJ$10:AJ43,">0")-1) -> 0.00 | AY43: 0.00 | AZ43: -1.00 | BA43: -1.00 | BC43: =IF(AO43>=0,0,COUNTIF($AO$10:AO43,"<0")) -> 0.00 | BD43: 0.00 | BE43: -1.00 | BF43: -1.00 | BJ43: N = | BK43: =COUNTIF(AJ10:AJ110,">0")-1 -> 11 | BP43: N = | BQ43: =COUNTIF(AO10:AO110,"<0") -> 10
B44: 107.2 | C44: 0.5 | D44: 0.340 | E44: 0.660 | F44: 1063.4 | G44: 603.7 | H44: 1.000 | I44: 1.000 | J44: 1.399 | K44: 0.794 | L44: 1.762 | M44: 0.476 | N44: 0.524 | O44: 1.000 | P44: 107.1844901 | R44: 0.841 | S44: 0.841 | T44: 0.000 | V44: 0.1 | W44: 0.1 | X44: 0 | Z44: 0.436 | AA44: 0.53 | AD44: 0.340 | AE44: 0.40 | AF44: 0.44 | AG44: 0.34 | AH44: 0.82 | AI44: 0.82 | AJ44: 0.00 | AK44: =IF(AH44>=$AB$11,COUNTIF($AJ$10:AJ44,">0")-1,99999) -> 11.00 | AM44: 0.07 | AN44: 0.07 | AO44: 0.00 | AP44: =IF(AM44<=$AB$11,COUNTIF($AO$10:AO44,"<0"),99999) -> 10.00 | AT44: 0.00 | AU44: 0.34 | AV44: 0.48 | AX44: =IF(AJ44<=0,0,COUNTIF($AJ$10:AJ44,">0")-1) -> 0.00 | AY44: 0.00 | AZ44: -1.00 | BA44: -1.00 | BC44: =IF(AO44>=0,0,COUNTIF($AO$10:AO44,"<0")) -> 0.00 | BD44: 0.00 | BE44: -1.00 | BF44: -1.00 | BJ44: Alimentação Ótima = | BK44: =SMALL($AK$10:$AK$110,1) -> 7 | BL44: ou | BM44: =BK44-1 -> 6 | BP44: Alimentação Ótima = | BQ44: =SMALL(AP10:AP110,1)-1 -> 4 | BR44: ou | BS44: =BQ44-1 -> 3
B45: 107.0 | C45: 0.5 | D45: 0.350 | E45: 0.650 | F45: 1057.8 | G45: 599.6 | H45: 1.000 | I45: 1.000 | J45: 1.392 | K45: 0.789 | L45: 1.764 | M45: 0.487 | N45: 0.513 | O45: 1.000 | P45: 106.9962198 | R45: 0.841 | S45: 0.841 | T45: 0.000 | V45: 0.1 | W45: 0.1 | X45: 0 | Z45: 0.436 | AA45: 0.53 | AD45: 0.350 | AE45: 0.42 | AF45: 0.44 | AG45: 0.35 | AH45: 0.82 | AI45: 0.82 | AJ45: 0.00 | AK45: =IF(AH45>=$AB$11,COUNTIF($AJ$10:AJ45,">0")-1,99999) -> 11.00 | AM45: 0.07 | AN45: 0.07 | AO45: 0.00 | AP45: =IF(AM45<=$AB$11,COUNTIF($AO$10:AO45,"<0"),99999) -> 10.00 | AT45: 0.00 | AU45: 0.35 | AV45: 0.49 | AX45: =IF(AJ45<=0,0,COUNTIF($AJ$10:AJ45,">0")-1) -> 0.00 | AY45: 0.00 | AZ45: -1.00 | BA45: -1.00 | BC45: =IF(AO45>=0,0,COUNTIF($AO$10:AO45,"<0")) -> 0.00 | BD45: 0.00 | BE45: -1.00 | BF45: -1.00 | BK45: (Estágios de baixo para cima) | BQ45: (Estágios de cima para baixo)
B46: 106.8 | C46: 0.5 | D46: 0.360 | E46: 0.640 | F46: 1052.3 | G46: 595.6 | H46: 1.000 | I46: 1.000 | J46: 1.385 | K46: 0.784 | L46: 1.767 | M46: 0.498 | N46: 0.502 | O46: 1.000 | P46: 106.8082517 | R46: 0.841 | S46: 0.841 | T46: 0.000 | V46: 0.1 | W46: 0.1 | X46: 0 | Z46: 0.436 | AA46: 0.53 | AD46: 0.360 | AE46: 0.43 | AF46: 0.44 | AG46: 0.36 | AH46: 0.82 | AI46: 0.82 | AJ46: 0.00 | AK46: =IF(AH46>=$AB$11,COUNTIF($AJ$10:AJ46,">0")-1,99999) -> 11.00 | AM46: 0.07 | AN46: 0.07 | AO46: 0.00 | AP46: =IF(AM46<=$AB$11,COUNTIF($AO$10:AO46,"<0"),99999) -> 10.00 | AT46: 0.00 | AU46: 0.36 | AV46: 0.50 | AX46: =IF(AJ46<=0,0,COUNTIF($AJ$10:AJ46,">0")-1) -> 0.00 | AY46: 0.00 | AZ46: -1.00 | BA46: -1.00 | BC46: =IF(AO46>=0,0,COUNTIF($AO$10:AO46,"<0")) -> 0.00 | BD46: 0.00 | BE46: -1.00 | BF46: -1.00 | BJ46: Alimentação Ótima = | BK46: =BK43-SMALL($AK$10:$AK$110,1) -> 4 | BL46: ou | BM46: =BK46+1 -> 5 | BP46: Alimentação Ótima = | BQ46: =BQ43-SMALL(AP12:AP112,1)+1 -> 6 | BR46: ou | BS46: =BQ46+1 -> 7
B47: 106.6 | C47: 0.5 | D47: 0.370 | E47: 0.630 | F47: 1046.8 | G47: 591.6 | H47: 1.000 | I47: 1.000 | J47: 1.377 | K47: 0.778 | L47: 1.769 | M47: 0.510 | N47: 0.490 | O47: 1.000 | P47: 106.6205913 | R47: 0.841 | S47: 0.841 | T47: 0.000 | V47: 0.1 | W47: 0.1 | X47: 0 | Z47: 0.436 | AA47: 0.53 | AD47: 0.370 | AE47: 0.44 | AF47: 0.44 | AG47: 0.37 | AH47: 0.82 | AI47: 0.82 | AJ47: 0.00 | AK47: =IF(AH47>=$AB$11,COUNTIF($AJ$10:AJ47,">0")-1,99999) -> 11.00 | AM47: 0.07 | AN47: 0.07 | AO47: 0.00 | AP47: =IF(AM47<=$AB$11,COUNTIF($AO$10:AO47,"<0"),99999) -> 10.00 | AT47: 0.00 | AU47: 0.37 | AV47: 0.51 | AX47: =IF(AJ47<=0,0,COUNTIF($AJ$10:AJ47,">0")-1) -> 0.00 | AY47: 0.00 | AZ47: -1.00 | BA47: -1.00 | BC47: =IF(AO47>=0,0,COUNTIF($AO$10:AO47,"<0")) -> 0.00 | BD47: 0.00 | BE47: -1.00 | BF47: -1.00 | BK47: (Estágios de cima para baixo) | BQ47: (Estágios de baixo para cima)
B48: 106.4 | C48: 0.5 | D48: 0.380 | E48: =1-D48 -> 0.620 | F48: 1041.3 | G48: 587.6 | H48: 1.000 | I48: 1.000 | J48: 1.370 | K48: 0.773 | L48: =J48/K48 -> 1.772 | M48: =J48*D48 -> 0.521 | N48: =K48*E48 -> 0.479 | O48: =M48+N48 -> 1.000 | P48: 106.4332439 | R48: 0.841 | S48: 0.841 | T48: 0.000 | V48: 0.1 | W48: 0.1 | X48: 0 | Z48: 0.436 | AA48: 0.53 | AD48: 0.380 | AE48: 0.46 | AF48: 0.44 | AG48: 0.38 | AH48: 0.82 | AI48: 0.82 | AJ48: 0.00 | AK48: =IF(AH48>=$AB$11,COUNTIF($AJ$10:AJ48,">0")-1,99999) -> 11.00 | AM48: 0.07 | AN48: 0.07 | AO48: 0.00 | AP48: =IF(AM48<=$AB$11,COUNTIF($AO$10:AO48,"<0"),99999) -> 10.00 | AT48: 0.00 | AU48: 0.38 | AV48: 0.52 | AX48: =IF(AJ48<=0,0,COUNTIF($AJ$10:AJ48,">0")-1) -> 0.00 | AY48: 0.00 | AZ48: -1.00 | BA48: -1.00 | BC48: =IF(AO48>=0,0,COUNTIF($AO$10:AO48,"<0")) -> 0.00 | BD48: 0.00 | BE48: -1.00 | BF48: -1.00
B49: 106.2 | C49: 0.5 | D49: 0.390 | E49: 0.610 | F49: 1035.8 | G49: 583.6 | H49: 1.000 | I49: 1.000 | J49: 1.363 | K49: 0.768 | L49: 1.775 | M49: 0.532 | N49: 0.468 | O49: 1.000 | P49: 106.2462148 | R49: 0.841 | S49: 0.841 | T49: 0.000 | V49: 0.1 | W49: 0.1 | X49: 0 | Z49: 0.436 | AA49: 0.53 | AD49: 0.390 | AE49: 0.47 | AF49: 0.44 | AG49: 0.39 | AH49: 0.82 | AI49: 0.82 | AJ49: 0.00 | AK49: =IF(AH49>=$AB$11,COUNTIF($AJ$10:AJ49,">0")-1,99999) -> 11.00 | AM49: 0.07 | AN49: 0.07 | AO49: 0.00 | AP49: =IF(AM49<=$AB$11,COUNTIF($AO$10:AO49,"<0"),99999) -> 10.00 | AT49: 0.00 | AU49: 0.39 | AV49: 0.53 | AX49: =IF(AJ49<=0,0,COUNTIF($AJ$10:AJ49,">0")-1) -> 0.00 | AY49: 0.00 | AZ49: -1.00 | BA49: -1.00 | BC49: =IF(AO49>=0,0,COUNTIF($AO$10:AO49,"<0")) -> 0.00 | BD49: 0.00 | BE49: -1.00 | BF49: -1.00
B50: 106.1 | C50: 0.5 | D50: 0.400 | E50: 0.600 | F50: 1030.4 | G50: 579.7 | H50: 1.000 | I50: 1.000 | J50: 1.356 | K50: 0.763 | L50: 1.777 | M50: 0.542 | N50: 0.458 | O50: 1.000 | P50: 106.0595093 | R50: 0.841 | S50: 0.841 | T50: 0.000 | V50: 0.1 | W50: 0.1 | X50: 0 | Z50: 0.436 | AA50: 0.53 | AD50: 0.400 | AE50: 0.48 | AF50: 0.44 | AG50: 0.40 | AH50: 0.82 | AI50: 0.82 | AJ50: 0.00 | AK50: =IF(AH50>=$AB$11,COUNTIF($AJ$10:AJ50,">0")-1,99999) -> 11.00 | AM50: 0.07 | AN50: 0.07 | AO50: 0.00 | AP50: =IF(AM50<=$AB$11,COUNTIF($AO$10:AO50,"<0"),99999) -> 10.00 | AT50: 0.00 | AU50: 0.40 | AV50: 0.54 | AX50: =IF(AJ50<=0,0,COUNTIF($AJ$10:AJ50,">0")-1) -> 0.00 | AY50: 0.00 | AZ50: -1.00 | BA50: -1.00 | BC50: =IF(AO50>=0,0,COUNTIF($AO$10:AO50,"<0")) -> 0.00 | BD50: 0.00 | BE50: -1.00 | BF50: -1.00
B51: 105.9 | C51: 0.6 | D51: 0.410 | E51: 0.590 | F51: 1025.0 | G51: 575.8 | H51: 1.000 | I51: 1.000 | J51: 1.349 | K51: 0.758 | L51: 1.780 | M51: 0.553 | N51: 0.447 | O51: 1.000 | P51: 105.8731323 | R51: 0.841 | S51: 0.841 | T51: 0.000 | V51: 0.1 | W51: 0.1 | X51: 0 | Z51: 0.436 | AA51: 0.53 | AD51: 0.410 | AE51: 0.49 | AF51: 0.44 | AG51: 0.41 | AH51: 0.82 | AI51: 0.82 | AJ51: 0.00 | AK51: =IF(AH51>=$AB$11,COUNTIF($AJ$10:AJ51,">0")-1,99999) -> 11.00 | AM51: 0.07 | AN51: 0.07 | AO51: 0.00 | AP51: =IF(AM51<=$AB$11,COUNTIF($AO$10:AO51,"<0"),99999) -> 10.00 | AT51: 1.00 | AU51: 0.41 | AV51: 0.54 | AX51: =IF(AJ51<=0,0,COUNTIF($AJ$10:AJ51,">0")-1) -> 0.00 | AY51: 0.00 | AZ51: -1.00 | BA51: -1.00 | BC51: =IF(AO51>=0,0,COUNTIF($AO$10:AO51,"<0")) -> 0.00 | BD51: 0.00 | BE51: -1.00 | BF51: -1.00
B52: 105.7 | C52: 0.6 | D52: 0.420 | E52: 0.580 | F52: 1019.6 | G52: 572.0 | H52: 1.000 | I52: 1.000 | J52: 1.342 | K52: 0.753 | L52: 1.783 | M52: 0.563 | N52: 0.437 | O52: 1.000 | P52: 105.687089 | R52: 0.841 | S52: 0.841 | T52: 0.000 | V52: 0.1 | W52: 0.1 | X52: 0 | Z52: 0.436 | AA52: 0.53 | AD52: 0.420 | AE52: 0.51 | AF52: 0.44 | AG52: 0.42 | AH52: 0.82 | AI52: 0.82 | AJ52: 0.00 | AK52: =IF(AH52>=$AB$11,COUNTIF($AJ$10:AJ52,">0")-1,99999) -> 11.00 | AM52: 0.07 | AN52: 0.07 | AO52: 0.00 | AP52: =IF(AM52<=$AB$11,COUNTIF($AO$10:AO52,"<0"),99999) -> 10.00 | AT52: 1.00 | AU52: 0.42 | AV52: 0.53 | AX52: =IF(AJ52<=0,0,COUNTIF($AJ$10:AJ52,">0")-1) -> 0.00 | AY52: 0.00 | AZ52: -1.00 | BA52: -1.00 | BC52: =IF(AO52>=0,0,COUNTIF($AO$10:AO52,"<0")) -> 0.00 | BD52: 0.00 | BE52: -1.00 | BF52: -1.00
B53: 105.5 | C53: 0.6 | D53: 0.430 | E53: 0.570 | F53: 1014.3 | G53: 568.2 | H53: 1.000 | I53: 1.000 | J53: 1.335 | K53: 0.748 | L53: 1.785 | M53: 0.574 | N53: 0.426 | O53: 1.000 | P53: 105.5013842 | R53: 0.841 | S53: 0.841 | T53: 0.000 | V53: 0.1 | W53: 0.1 | X53: 0 | Z53: 0.436 | AA53: 0.53 | AD53: 0.430 | AE53: 0.52 | AF53: 0.44 | AG53: 0.43 | AH53: 0.82 | AI53: 0.82 | AJ53: 0.00 | AK53: =IF(AH53>=$AB$11,COUNTIF($AJ$10:AJ53,">0")-1,99999) -> 11.00 | AM53: 0.07 | AN53: 0.07 | AO53: 0.00 | AP53: =IF(AM53<=$AB$11,COUNTIF($AO$10:AO53,"<0"),99999) -> 10.00 | AT53: 1.00 | AU53: 0.43 | AV53: 0.53 | AX53: =IF(AJ53<=0,0,COUNTIF($AJ$10:AJ53,">0")-1) -> 0.00 | AY53: 0.00 | AZ53: -1.00 | BA53: -1.00 | BC53: =IF(AO53>=0,0,COUNTIF($AO$10:AO53,"<0")) -> 0.00 | BD53: 0.00 | BE53: -1.00 | BF53: -1.00
B54: 105.3 | C54: 0.6 | D54: 0.440 | E54: 0.560 | F54: 1009.0 | G54: 564.4 | H54: 1.000 | I54: 1.000 | J54: 1.328 | K54: 0.743 | L54: 1.788 | M54: 0.584 | N54: 0.416 | O54: 1.000 | P54: 105.3160228 | R54: 0.841 | S54: 0.841 | T54: 0.000 | V54: 0.1 | W54: 0.1 | X54: 0 | Z54: 0.440 | AA54: 0.53 | AD54: 0.436 | AE54: 0.53 | AF54: 0.44 | AG54: 0.44 | AH54: 0.82 | AI54: 0.82 | AJ54: 0.00 | AK54: =IF(AH54>=$AB$11,COUNTIF($AJ$10:AJ54,">0")-1,99999) -> 11.00 | AM54: 0.07 | AN54: 0.07 | AO54: 0.00 | AP54: =IF(AM54<=$AB$11,COUNTIF($AO$10:AO54,"<0"),99999) -> 10.00 | AT54: 1.00 | AU54: 0.44 | AV54: 0.53 | AX54: =IF(AJ54<=0,0,COUNTIF($AJ$10:AJ54,">0")-1) -> 0.00 | AY54: 0.00 | AZ54: -1.00 | BA54: -1.00 | BC54: =IF(AO54>=0,0,COUNTIF($AO$10:AO54,"<0")) -> 0.00 | BD54: 0.00 | BE54: -1.00 | BF54: -1.00
B55: 105.1 | C55: 0.6 | D55: 0.450 | E55: 0.550 | F55: 1003.7 | G55: 560.6 | H55: 1.000 | I55: 1.000 | J55: 1.321 | K55: 0.738 | L55: 1.790 | M55: 0.594 | N55: 0.406 | O55: 1.000 | P55: 105.1310096 | R55: 0.841 | S55: 0.841 | T55: 0.000 | V55: 0.1 | W55: 0.1 | X55: 0 | Z55: 0.450 | AA55: 0.54 | AD55: 0.436 | AE55: 0.53 | AF55: 0.45 | AG55: 0.44 | AH55: 0.82 | AI55: 0.82 | AJ55: 0.00 | AK55: =IF(AH55>=$AB$11,COUNTIF($AJ$10:AJ55,">0")-1,99999) -> 11.00 | AM55: 0.07 | AN55: 0.07 | AO55: 0.00 | AP55: =IF(AM55<=$AB$11,COUNTIF($AO$10:AO55,"<0"),99999) -> 10.00 | AT55: 1.00 | AU55: 0.45 | AV55: 0.52 | AX55: =IF(AJ55<=0,0,COUNTIF($AJ$10:AJ55,">0")-1) -> 0.00 | AY55: 0.00 | AZ55: -1.00 | BA55: -1.00 | BC55: =IF(AO55>=0,0,COUNTIF($AO$10:AO55,"<0")) -> 0.00 | BD55: 0.00 | BE55: -1.00 | BF55: -1.00
B56: 104.9 | C56: 0.6 | D56: 0.460 | E56: 0.540 | F56: 998.5 | G56: 556.8 | H56: 1.000 | I56: 1.000 | J56: 1.314 | K56: 0.733 | L56: 1.793 | M56: 0.604 | N56: 0.396 | O56: 1.000 | P56: 104.9463493 | R56: 0.841 | S56: 0.841 | T56: 0.000 | V56: 0.1 | W56: 0.1 | X56: 0 | Z56: 0.460 | AA56: 0.55 | AD56: 0.436 | AE56: 0.53 | AF56: 0.46 | AG56: 0.44 | AH56: 0.82 | AI56: 0.82 | AJ56: 0.00 | AK56: =IF(AH56>=$AB$11,COUNTIF($AJ$10:AJ56,">0")-1,99999) -> 11.00 | AM56: 0.07 | AN56: 0.07 | AO56: 0.00 | AP56: =IF(AM56<=$AB$11,COUNTIF($AO$10:AO56,"<0"),99999) -> 10.00 | AT56: 1.00 | AU56: 0.46 | AV56: 0.52 | AX56: =IF(AJ56<=0,0,COUNTIF($AJ$10:AJ56,">0")-1) -> 0.00 | AY56: 0.00 | AZ56: -1.00 | BA56: -1.00 | BC56: =IF(AO56>=0,0,COUNTIF($AO$10:AO56,"<0")) -> 0.00 | BD56: 0.00 | BE56: -1.00 | BF56: -1.00
B57: 104.8 | C57: 0.6 | D57: 0.470 | E57: 0.530 | F57: 993.3 | G57: 553.1 | H57: 1.000 | I57: 1.000 | J57: 1.307 | K57: 0.728 | L57: 1.796 | M57: 0.614 | N57: 0.386 | O57: 1.000 | P57: 104.7620464 | R57: 0.841 | S57: 0.841 | T57: 0.000 | V57: 0.1 | W57: 0.1 | X57: 0 | Z57: 0.470 | AA57: 0.55 | AD57: 0.436 | AE57: 0.53 | AF57: 0.47 | AG57: 0.44 | AH57: 0.82 | AI57: 0.82 | AJ57: 0.00 | AK57: =IF(AH57>=$AB$11,COUNTIF($AJ$10:AJ57,">0")-1,99999) -> 11.00 | AM57: 0.07 | AN57: 0.07 | AO57: 0.00 | AP57: =IF(AM57<=$AB$11,COUNTIF($AO$10:AO57,"<0"),99999) -> 10.00 | AT57: 1.00 | AU57: 0.47 | AV57: 0.51 | AX57: =IF(AJ57<=0,0,COUNTIF($AJ$10:AJ57,">0")-1) -> 0.00 | AY57: 0.00 | AZ57: -1.00 | BA57: -1.00 | BC57: =IF(AO57>=0,0,COUNTIF($AO$10:AO57,"<0")) -> 0.00 | BD57: 0.00 | BE57: -1.00 | BF57: -1.00
B58: 104.6 | C58: 0.6 | D58: 0.480 | E58: 0.520 | F58: 988.1 | G58: 549.4 | H58: 1.000 | I58: 1.000 | J58: 1.300 | K58: 0.723 | L58: 1.798 | M58: 0.624 | N58: 0.376 | O58: 1.000 | P58: 104.5781055 | R58: 0.841 | S58: 0.841 | T58: 0.000 | V58: 0.1 | W58: 0.1 | X58: 0 | Z58: 0.480 | AA58: 0.56 | AD58: 0.436 | AE58: 0.53 | AF58: 0.48 | AG58: 0.44 | AH58: 0.82 | AI58: 0.82 | AJ58: 0.00 | AK58: =IF(AH58>=$AB$11,COUNTIF($AJ$10:AJ58,">0")-1,99999) -> 11.00 | AM58: 0.07 | AN58: 0.07 | AO58: 0.00 | AP58: =IF(AM58<=$AB$11,COUNTIF($AO$10:AO58,"<0"),99999) -> 10.00 | AT58: 1.00 | AU58: 0.48 | AV58: 0.51 | AX58: =IF(AJ58<=0,0,COUNTIF($AJ$10:AJ58,">0")-1) -> 0.00 | AY58: 0.00 | AZ58: -1.00 | BA58: -1.00 | BC58: =IF(AO58>=0,0,COUNTIF($AO$10:AO58,"<0")) -> 0.00 | BD58: 0.00 | BE58: -1.00 | BF58: -1.00
B59: 104.4 | C59: 0.6 | D59: 0.490 | E59: 0.510 | F59: 983.0 | G59: 545.8 | H59: 1.000 | I59: 1.000 | J59: 1.293 | K59: 0.718 | L59: 1.801 | M59: 0.634 | N59: 0.366 | O59: 1.000 | P59: 104.3945311 | R59: 0.841 | S59: 0.841 | T59: 0.000 | V59: 0.1 | W59: 0.1 | X59: 0 | Z59: 0.490 | AA59: 0.57 | AD59: 0.436 | AE59: 0.53 | AF59: 0.49 | AG59: 0.44 | AH59: 0.82 | AI59: 0.82 | AJ59: 0.00 | AK59: =IF(AH59>=$AB$11,COUNTIF($AJ$10:AJ59,">0")-1,99999) -> 11.00 | AM59: 0.07 | AN59: 0.07 | AO59: 0.00 | AP59: =IF(AM59<=$AB$11,COUNTIF($AO$10:AO59,"<0"),99999) -> 10.00 | AT59: 1.00 | AU59: 0.49 | AV59: 0.50 | AX59: =IF(AJ59<=0,0,COUNTIF($AJ$10:AJ59,">0")-1) -> 0.00 | AY59: 0.00 | AZ59: -1.00 | BA59: -1.00 | BC59: =IF(AO59>=0,0,COUNTIF($AO$10:AO59,"<0")) -> 0.00 | BD59: 0.00 | BE59: -1.00 | BF59: -1.00
B60: 104.2 | C60: 0.6 | D60: 0.500 | E60: 0.500 | F60: 977.8 | G60: 542.1 | H60: 1.000 | I60: 1.000 | J60: 1.287 | K60: 0.713 | L60: 1.804 | M60: 0.643 | N60: 0.357 | O60: 1.000 | P60: 104.2113275 | R60: 0.841 | S60: 0.841 | T60: 0.000 | V60: 0.1 | W60: 0.1 | X60: 0 | Z60: 0.500 | AA60: 0.58 | AD60: 0.436 | AE60: 0.53 | AF60: 0.50 | AG60: 0.44 | AH60: 0.82 | AI60: 0.82 | AJ60: 0.00 | AK60: =IF(AH60>=$AB$11,COUNTIF($AJ$10:AJ60,">0")-1,99999) -> 11.00 | AM60: 0.07 | AN60: 0.07 | AO60: 0.00 | AP60: =IF(AM60<=$AB$11,COUNTIF($AO$10:AO60,"<0"),99999) -> 10.00 | AT60: 1.00 | AU60: 0.50 | AV60: 0.50 | AX60: =IF(AJ60<=0,0,COUNTIF($AJ$10:AJ60,">0")-1) -> 0.00 | AY60: 0.00 | AZ60: -1.00 | BA60: -1.00 | BC60: =IF(AO60>=0,0,COUNTIF($AO$10:AO60,"<0")) -> 0.00 | BD60: 0.00 | BE60: -1.00 | BF60: -1.00
B61: 104.0 | C61: 0.7 | D61: 0.510 | E61: 0.490 | F61: 971.9 | G61: 537.9 | H61: 1.000 | I61: 1.000 | J61: 1.279 | K61: 0.708 | L61: 1.807 | M61: 0.652 | N61: 0.347 | O61: 0.999 | P61: 103.9974819 | R61: 0.841 | S61: 0.841 | T61: 0.000 | V61: 0.1 | W61: 0.1 | X61: 0 | Z61: 0.510 | AA61: 0.58 | AD61: 0.436 | AE61: 0.53 | AF61: 0.51 | AG61: 0.44 | AH61: 0.82 | AI61: 0.82 | AJ61: 0.00 | AK61: =IF(AH61>=$AB$11,COUNTIF($AJ$10:AJ61,">0")-1,99999) -> 11.00 | AM61: 0.07 | AN61: 0.07 | AO61: 0.00 | AP61: =IF(AM61<=$AB$11,COUNTIF($AO$10:AO61,"<0"),99999) -> 10.00 | AT61: 1.00 | AU61: 0.51 | AV61: 0.50 | AX61: =IF(AJ61<=0,0,COUNTIF($AJ$10:AJ61,">0")-1) -> 0.00 | AY61: 0.00 | AZ61: -1.00 | BA61: -1.00 | BC61: =IF(AO61>=0,0,COUNTIF($AO$10:AO61,"<0")) -> 0.00 | BD61: 0.00 | BE61: -1.00 | BF61: -1.00
B62: 103.8 | C62: 0.7 | D62: 0.520 | E62: 0.480 | F62: 966.9 | G62: 534.4 | H62: 1.000 | I62: 1.000 | J62: 1.272 | K62: 0.703 | L62: 1.809 | M62: 0.662 | N62: 0.338 | O62: 0.999 | P62: 103.816383 | R62: 0.841 | S62: 0.841 | T62: 0.000 | V62: 0.1 | W62: 0.1 | X62: 0 | Z62: 0.520 | AA62: 0.59 | AD62: 0.436 | AE62: 0.53 | AF62: 0.52 | AG62: 0.44 | AH62: 0.82 | AI62: 0.82 | AJ62: 0.00 | AK62: =IF(AH62>=$AB$11,COUNTIF($AJ$10:AJ62,">0")-1,99999) -> 11.00 | AM62: 0.07 | AN62: 0.07 | AO62: 0.00 | AP62: =IF(AM62<=$AB$11,COUNTIF($AO$10:AO62,"<0"),99999) -> 10.00 | AT62: 1.00 | AU62: 0.52 | AV62: 0.49 | AX62: =IF(AJ62<=0,0,COUNTIF($AJ$10:AJ62,">0")-1) -> 0.00 | AY62: 0.00 | AZ62: -1.00 | BA62: -1.00 | BC62: =IF(AO62>=0,0,COUNTIF($AO$10:AO62,"<0")) -> 0.00 | BD62: 0.00 | BE62: -1.00 | BF62: -1.00
B63: 103.6 | C63: 0.7 | D63: 0.530 | E63: 0.470 | F63: 961.9 | G63: 530.9 | H63: 1.000 | I63: 1.000 | J63: 1.266 | K63: 0.699 | L63: 1.812 | M63: 0.671 | N63: 0.328 | O63: 0.999 | P63: 103.6356646 | R63: 0.841 | S63: 0.841 | T63: 0.000 | V63: 0.1 | W63: 0.1 | X63: 0 | Z63: 0.530 | AA63: 0.60 | AD63: 0.436 | AE63: 0.53 | AF63: 0.53 | AG63: 0.44 | AH63: 0.82 | AI63: 0.82 | AJ63: 0.00 | AK63: =IF(AH63>=$AB$11,COUNTIF($AJ$10:AJ63,">0")-1,99999) -> 11.00 | AM63: 0.07 | AN63: 0.07 | AO63: 0.00 | AP63: =IF(AM63<=$AB$11,COUNTIF($AO$10:AO63,"<0"),99999) -> 10.00 | AT63: 1.00 | AU63: 0.53 | AV63: 0.49 | AX63: =IF(AJ63<=0,0,COUNTIF($AJ$10:AJ63,">0")-1) -> 0.00 | AY63: 0.00 | AZ63: -1.00 | BA63: -1.00 | BC63: =IF(AO63>=0,0,COUNTIF($AO$10:AO63,"<0")) -> 0.00 | BD63: 0.00 | BE63: -1.00 | BF63: -1.00
B64: 103.5 | C64: 0.7 | D64: 0.540 | E64: 0.460 | F64: 957.0 | G64: 527.4 | H64: 1.000 | I64: 1.000 | J64: 1.259 | K64: 0.694 | L64: 1.815 | M64: 0.680 | N64: 0.319 | O64: 0.999 | P64: 103.4553264 | R64: 0.841 | S64: 0.841 | T64: 0.000 | V64: 0.1 | W64: 0.1 | X64: 0 | Z64: 0.540 | AA64: 0.61 | AD64: 0.436 | AE64: 0.53 | AF64: 0.54 | AG64: 0.44 | AH64: 0.82 | AI64: 0.82 | AJ64: 0.00 | AK64: =IF(AH64>=$AB$11,COUNTIF($AJ$10:AJ64,">0")-1,99999) -> 11.00 | AM64: 0.07 | AN64: 0.07 | AO64: 0.00 | AP64: =IF(AM64<=$AB$11,COUNTIF($AO$10:AO64,"<0"),99999) -> 10.00 | AT64: 1.00 | AU64: 0.54 | AV64: 0.48 | AX64: =IF(AJ64<=0,0,COUNTIF($AJ$10:AJ64,">0")-1) -> 0.00 | AY64: 0.00 | AZ64: -1.00 | BA64: -1.00 | BC64: =IF(AO64>=0,0,COUNTIF($AO$10:AO64,"<0")) -> 0.00 | BD64: 0.00 | BE64: -1.00 | BF64: -1.00
B65: 103.3 | C65: 0.7 | D65: 0.550 | E65: 0.450 | F65: 952.1 | G65: 523.9 | H65: 1.000 | I65: 1.000 | J65: 1.253 | K65: 0.689 | L65: 1.817 | M65: 0.689 | N65: 0.310 | O65: 0.999 | P65: 103.275368 | R65: 0.841 | S65: 0.841 | T65: 0.000 | V65: 0.1 | W65: 0.1 | X65: 0 | Z65: 0.550 | AA65: 0.61 | AD65: 0.436 | AE65: 0.53 | AF65: 0.55 | AG65: 0.44 | AH65: 0.82 | AI65: 0.82 | AJ65: 0.00 | AK65: =IF(AH65>=$AB$11,COUNTIF($AJ$10:AJ65,">0")-1,99999) -> 11.00 | AM65: 0.07 | AN65: 0.07 | AO65: 0.00 | AP65: =IF(AM65<=$AB$11,COUNTIF($AO$10:AO65,"<0"),99999) -> 10.00 | AT65: 1.00 | AU65: 0.55 | AV65: 0.48 | AX65: =IF(AJ65<=0,0,COUNTIF($AJ$10:AJ65,">0")-1) -> 0.00 | AY65: 0.00 | AZ65: -1.00 | BA65: -1.00 | BC65: =IF(AO65>=0,0,COUNTIF($AO$10:AO65,"<0")) -> 0.00 | BD65: 0.00 | BE65: -1.00 | BF65: -1.00
B66: 103.1 | C66: 0.7 | D66: 0.560 | E66: 0.440 | F66: 947.2 | G66: 520.5 | H66: 1.000 | I66: 1.000 | J66: 1.246 | K66: 0.685 | L66: 1.820 | M66: 0.698 | N66: 0.301 | O66: 0.999 | P66: 103.0957894 | R66: 0.841 | S66: 0.841 | T66: 0.000 | V66: 0.1 | W66: 0.1 | X66: 0 | Z66: 0.560 | AA66: 0.62 | AD66: 0.436 | AE66: 0.53 | AF66: 0.56 | AG66: 0.44 | AH66: 0.82 | AI66: 0.82 | AJ66: 0.00 | AK66: =IF(AH66>=$AB$11,COUNTIF($AJ$10:AJ66,">0")-1,99999) -> 11.00 | AM66: 0.07 | AN66: 0.07 | AO66: 0.00 | AP66: =IF(AM66<=$AB$11,COUNTIF($AO$10:AO66,"<0"),99999) -> 10.00 | AT66: 1.00 | AU66: 0.56 | AV66: 0.47 | AX66: =IF(AJ66<=0,0,COUNTIF($AJ$10:AJ66,">0")-1) -> 0.00 | AY66: 0.00 | AZ66: -1.00 | BA66: -1.00 | BC66: =IF(AO66>=0,0,COUNTIF($AO$10:AO66,"<0")) -> 0.00 | BD66: 0.00 | BE66: -1.00 | BF66: -1.00
B67: 102.9 | C67: 0.7 | D67: 0.570 | E67: 0.430 | F67: 942.3 | G67: 517.1 | H67: 1.000 | I67: 1.000 | J67: 1.240 | K67: 0.680 | L67: 1.822 | M67: 0.707 | N67: 0.293 | O67: 0.999 | P67: 102.9165909 | R67: 0.841 | S67: 0.841 | T67: 0.000 | V67: 0.1 | W67: 0.1 | X67: 0 | Z67: 0.570 | AA67: 0.63 | AD67: 0.436 | AE67: 0.53 | AF67: 0.57 | AG67: 0.44 | AH67: 0.82 | AI67: 0.82 | AJ67: 0.00 | AK67: =IF(AH67>=$AB$11,COUNTIF($AJ$10:AJ67,">0")-1,99999) -> 11.00 | AM67: 0.07 | AN67: 0.07 | AO67: 0.00 | AP67: =IF(AM67<=$AB$11,COUNTIF($AO$10:AO67,"<0"),99999) -> 10.00 | AT67: 1.00 | AU67: 0.57 | AV67: 0.47 | AX67: =IF(AJ67<=0,0,COUNTIF($AJ$10:AJ67,">0")-1) -> 0.00 | AY67: 0.00 | AZ67: -1.00 | BA67: -1.00 | BC67: =IF(AO67>=0,0,COUNTIF($AO$10:AO67,"<0")) -> 0.00 | BD67: 0.00 | BE67: -1.00 | BF67: -1.00
B68: 102.7 | C68: 0.7 | D68: 0.580 | E68: 0.420 | F68: 937.5 | G68: 513.7 | H68: 1.000 | I68: 1.000 | J68: 1.234 | K68: 0.676 | L68: 1.825 | M68: 0.715 | N68: 0.284 | O68: 0.999 | P68: 102.737773 | R68: 0.841 | S68: 0.841 | T68: 0.000 | V68: 0.1 | W68: 0.1 | X68: 0 | Z68: 0.580 | AA68: 0.64 | AD68: 0.436 | AE68: 0.53 | AF68: 0.58 | AG68: 0.44 | AH68: 0.82 | AI68: 0.82 | AJ68: 0.00 | AK68: =IF(AH68>=$AB$11,COUNTIF($AJ$10:AJ68,">0")-1,99999) -> 11.00 | AM68: 0.07 | AN68: 0.07 | AO68: 0.00 | AP68: =IF(AM68<=$AB$11,COUNTIF($AO$10:AO68,"<0"),99999) -> 10.00 | AT68: 1.00 | AU68: 0.58 | AV68: 0.47 | AX68: =IF(AJ68<=0,0,COUNTIF($AJ$10:AJ68,">0")-1) -> 0.00 | AY68: 0.00 | AZ68: -1.00 | BA68: -1.00 | BC68: =IF(AO68>=0,0,COUNTIF($AO$10:AO68,"<0")) -> 0.00 | BD68: 0.00 | BE68: -1.00 | BF68: -1.00
B69: 102.6 | C69: 0.7 | D69: 0.590 | E69: 0.410 | F69: 932.7 | G69: 510.3 | H69: 1.000 | I69: 1.000 | J69: 1.227 | K69: 0.671 | L69: 1.828 | M69: 0.724 | N69: 0.275 | O69: 0.999 | P69: 102.5593366 | R69: 0.841 | S69: 0.841 | T69: 0.000 | V69: 0.1 | W69: 0.1 | X69: 0 | Z69: 0.590 | AA69: 0.64 | AD69: 0.436 | AE69: 0.53 | AF69: 0.59 | AG69: 0.44 | AH69: 0.82 | AI69: 0.82 | AJ69: 0.00 | AK69: =IF(AH69>=$AB$11,COUNTIF($AJ$10:AJ69,">0")-1,99999) -> 11.00 | AM69: 0.07 | AN69: 0.07 | AO69: 0.00 | AP69: =IF(AM69<=$AB$11,COUNTIF($AO$10:AO69,"<0"),99999) -> 10.00 | AT69: 1.00 | AU69: 0.59 | AV69: 0.46 | AX69: =IF(AJ69<=0,0,COUNTIF($AJ$10:AJ69,">0")-1) -> 0.00 | AY69: 0.00 | AZ69: -1.00 | BA69: -1.00 | BC69: =IF(AO69>=0,0,COUNTIF($AO$10:AO69,"<0")) -> 0.00 | BD69: 0.00 | BE69: -1.00 | BF69: -1.00
B70: 102.4 | C70: 0.7 | D70: 0.600 | E70: 0.400 | F70: 927.9 | G70: 507.0 | H70: 1.000 | I70: 1.000 | J70: 1.221 | K70: 0.667 | L70: 1.830 | M70: 0.733 | N70: 0.267 | O70: 0.999 | P70: 102.3812825 | R70: 0.841 | S70: 0.841 | T70: 0.000 | V70: 0.1 | W70: 0.1 | X70: 0 | Z70: 0.600 | AA70: 0.65 | AD70: 0.436 | AE70: 0.53 | AF70: 0.60 | AG70: 0.44 | AH70: 0.82 | AI70: 0.82 | AJ70: 0.00 | AK70: =IF(AH70>=$AB$11,COUNTIF($AJ$10:AJ70,">0")-1,99999) -> 11.00 | AM70: 0.07 | AN70: 0.07 | AO70: 0.00 | AP70: =IF(AM70<=$AB$11,COUNTIF($AO$10:AO70,"<0"),99999) -> 10.00 | AT70: 1.00 | AU70: 0.60 | AV70: 0.46 | AX70: =IF(AJ70<=0,0,COUNTIF($AJ$10:AJ70,">0")-1) -> 0.00 | AY70: 0.00 | AZ70: -1.00 | BA70: -1.00 | BC70: =IF(AO70>=0,0,COUNTIF($AO$10:AO70,"<0")) -> 0.00 | BD70: 0.00 | BE70: -1.00 | BF70: -1.00
B71: 102.2 | C71: 0.7 | D71: 0.610 | E71: 0.390 | F71: 923.2 | G71: 503.7 | H71: 1.000 | I71: 1.000 | J71: 1.215 | K71: 0.663 | L71: 1.833 | M71: 0.741 | N71: 0.258 | O71: 0.999 | P71: 102.203612 | R71: 0.841 | S71: 0.841 | T71: 0.000 | V71: 0.1 | W71: 0.1 | X71: 0 | Z71: 0.610 | AA71: 0.66 | AD71: 0.436 | AE71: 0.53 | AF71: 0.61 | AG71: 0.44 | AH71: 0.82 | AI71: 0.82 | AJ71: 0.00 | AK71: =IF(AH71>=$AB$11,COUNTIF($AJ$10:AJ71,">0")-1,99999) -> 11.00 | AM71: 0.07 | AN71: 0.07 | AO71: 0.00 | AP71: =IF(AM71<=$AB$11,COUNTIF($AO$10:AO71,"<0"),99999) -> 10.00 | AT71: 1.00 | AU71: 0.61 | AV71: 0.45 | AX71: =IF(AJ71<=0,0,COUNTIF($AJ$10:AJ71,">0")-1) -> 0.00 | AY71: 0.00 | AZ71: -1.00 | BA71: -1.00 | BC71: =IF(AO71>=0,0,COUNTIF($AO$10:AO71,"<0")) -> 0.00 | BD71: 0.00 | BE71: -1.00 | BF71: -1.00
B72: 102.0 | C72: 0.7 | D72: 0.620 | E72: 0.380 | F72: 918.5 | G72: 500.4 | H72: 1.000 | I72: 1.000 | J72: 1.209 | K72: 0.658 | L72: 1.835 | M72: 0.749 | N72: 0.250 | O72: 0.999 | P72: 102.0263263 | R72: 0.841 | S72: 0.841 | T72: 0.000 | V72: 0.1 | W72: 0.1 | X72: 0 | Z72: 0.620 | AA72: 0.67 | AD72: 0.436 | AE72: 0.53 | AF72: 0.62 | AG72: 0.44 | AH72: 0.82 | AI72: 0.82 | AJ72: 0.00 | AK72: =IF(AH72>=$AB$11,COUNTIF($AJ$10:AJ72,">0")-1,99999) -> 11.00 | AM72: 0.07 | AN72: 0.07 | AO72: 0.00 | AP72: =IF(AM72<=$AB$11,COUNTIF($AO$10:AO72,"<0"),99999) -> 10.00 | AT72: 1.00 | AU72: 0.62 | AV72: 0.45 | AX72: =IF(AJ72<=0,0,COUNTIF($AJ$10:AJ72,">0")-1) -> 0.00 | AY72: 0.00 | AZ72: -1.00 | BA72: -1.00 | BC72: =IF(AO72>=0,0,COUNTIF($AO$10:AO72,"<0")) -> 0.00 | BD72: 0.00 | BE72: -1.00 | BF72: -1.00
B73: 101.8 | C73: 0.8 | D73: 0.630 | E73: 0.370 | F73: 913.8 | G73: 497.1 | H73: 1.000 | I73: 1.000 | J73: 1.202 | K73: 0.654 | L73: 1.838 | M73: 0.757 | N73: 0.242 | O73: 1.000 | P73: 101.849427 | R73: 0.841 | S73: 0.841 | T73: 0.000 | V73: 0.1 | W73: 0.1 | X73: 0 | Z73: 0.630 | AA73: 0.67 | AD73: 0.436 | AE73: 0.53 | AF73: 0.63 | AG73: 0.44 | AH73: 0.82 | AI73: 0.82 | AJ73: 0.00 | AK73: =IF(AH73>=$AB$11,COUNTIF($AJ$10:AJ73,">0")-1,99999) -> 11.00 | AM73: 0.07 | AN73: 0.07 | AO73: 0.00 | AP73: =IF(AM73<=$AB$11,COUNTIF($AO$10:AO73,"<0"),99999) -> 10.00 | AT73: 1.00 | AU73: 0.63 | AV73: 0.44 | AX73: =IF(AJ73<=0,0,COUNTIF($AJ$10:AJ73,">0")-1) -> 0.00 | AY73: 0.00 | AZ73: -1.00 | BA73: -1.00 | BC73: =IF(AO73>=0,0,COUNTIF($AO$10:AO73,"<0")) -> 0.00 | BD73: 0.00 | BE73: -1.00 | BF73: -1.00
B74: 101.7 | C74: 0.8 | D74: 0.640 | E74: 0.360 | F74: 909.1 | G74: =10^($D$4-$E$4/($F$4+$B74)) -> 493.9 | H74: =IF($B$6=0,1,IF(E74=0,1,EXP($B$5/(1+D74*$B$5/E74/$B$6)^2))) -> 1.000 | I74: =IF($B$5=0,1,IF(D74=0,1,EXP($B$6/(1+E74*$B$6/D74/$B$5)^2))) -> 1.000 | J74: =H74*F74/$I$2 -> 1.196 | K74: =I74*G74/$I$2 -> 0.650 | L74: 1.841 | M74: 0.766 | N74: 0.234 | O74: 1.000 | P74: =B74 -> 101.6729157 | R74: 0.841 | S74: 0.841 | T74: 0.000 | V74: 0.1 | W74: 0.1 | X74: 0 | Z74: =IF(D74>=$I$7,$I$7,IF(D74>=$AB$11,D74,$AB$11)) -> 0.640 | AA74: =$BL$4*Z74+$BI$2/$BI$5*$I$7 -> 0.68 | AD74: =IF(D74<=$I$6,$I$6,IF(D74>=$AB$11,$AB$11,D74)) -> 0.436 | AE74: =$BL$5*AD74-$BI$3/$BI$7*$I$6 -> 0.53 | AF74: 0.64 | AG74: 0.44 | AH74: 0.82 | AI74: 0.82 | AJ74: 0.00 | AK74: =IF(AH74>=$AB$11,COUNTIF($AJ$10:AJ74,">0")-1,99999) -> 11.00 | AM74: 0.07 | AN74: 0.07 | AO74: 0.00 | AP74: =IF(AM74<=$AB$11,COUNTIF($AO$10:AO74,"<0"),99999) -> 10.00 | AT74: =IF($M$3>1,IF(M74-AV74>0,0,1),IF(M74-AV74>0,1,0)) -> 1.00 | AU74: =IF($M$3=1,$I$5,D74) -> 0.64 | AV74: =IF($M$3=1,D74,IF($M$3/($M$3-1)*AU74-$I$5/($M$3-1)>M74,M74,$M$3/($M$3-1)*AU74-$I$5/($M$3-1))) -> 0.44 | AX74: =IF(AJ74<=0,0,COUNTIF($AJ$10:AJ74,">0")-1) -> 0.00 | AY74: 0.00 | AZ74: -1.00 | BA74: -1.00 | BC74: =IF(AO74>=0,0,COUNTIF($AO$10:AO74,"<0")) -> 0.00 | BD74: 0.00 | BE74: -1.00 | BF74: -1.00
B75: 101.5 | C75: =M75 -> 0.8 | D75: 0.650 | E75: 0.350 | F75: 904.5 | G75: 490.7 | H75: 1.000 | I75: 1.000 | J75: 1.190 | K75: 0.646 | L75: 1.843 | M75: 0.774 | N75: 0.226 | O75: 1.000 | P75: 101.4967942 | R75: 0.841 | S75: =IF(S74>=$I$7,S74,VLOOKUP(R74,$D$10:$M$110,10)) -> 0.841 | T75: 0.000 | V75: 0.1 | W75: =IF(W74<=$I$6,W74,VLOOKUP(V74,$C$10:$D$110,2)) -> 0.1 | X75: =W75-W74 -> 0 | Z75: 0.650 | AA75: 0.69 | AD75: 0.436 | AE75: 0.53 | AF75: =Z75 -> 0.65 | AG75: =AD75 -> 0.44 | AH75: 0.82 | AI75: 0.82 | AJ75: 0.00 | AK75: =IF(AH75>=$AB$11,COUNTIF($AJ$10:AJ75,">0")-1,99999) -> 11.00 | AM75: =IF(AN74<=$I$6,AN74,IF(AN74>=$AB$11,VLOOKUP(AN74,$Z$10:$AA$110,2),VLOOKUP(AN74,$AD$10:$AE$110,2))) -> 0.07 | AN75: 0.07 | AO75: =AN75-AN74 -> 0.00 | AP75: =IF(AM75<=$AB$11,COUNTIF($AO$10:AO75,"<0"),99999) -> 10.00 | AT75: 1.00 | AU75: 0.65 | AV75: 0.44 | AX75: =IF(AJ75<=0,0,COUNTIF($AJ$10:AJ75,">0")-1) -> 0.00 | AY75: =IF(AX75=0,0,VLOOKUP(AI75,$D$10:$P$110,13)) -> 0.00 | AZ75: =IF(AX75=0,-1,AH75) -> -1.00 | BA75: =IF(AX75=0,-1,AI75) -> -1.00 | BC75: =IF(AO75>=0,0,COUNTIF($AO$10:AO75,"<0")) -> 0.00 | BD75: =IF(BC75=0,0,VLOOKUP(AN75,$D$10:$P$110,13)) -> 0.00 | BE75: =IF(BC75=0,-1,AN75) -> -1.00 | BF75: =IF(BC75=0,-1,AM75) -> -1.00
B76: 101.3 | C76: 0.8 | D76: 0.660 | E76: 0.340 | F76: =10^($D$3-$E$3/($F$3+$B76)) -> 899.9 | G76: 487.5 | H76: 1.000 | I76: 1.000 | J76: 1.184 | K76: 0.641 | L76: 1.846 | M76: 0.782 | N76: 0.218 | O76: 1.000 | P76: 101.3210644 | R76: =S75 -> 0.841 | S76: 0.841 | T76: =S76-S75 -> 0.000 | V76: =W75 -> 0.1 | W76: 0.1 | X76: 0 | Z76: 0.660 | AA76: 0.70 | AD76: 0.436 | AE76: 0.53 | AF76: 0.66 | AG76: 0.44 | AH76: =IF(AI75>=$I$7,AI75,IF(AI75<=$AC$11,VLOOKUP(AI75,$AE$10:$AG$110,3),VLOOKUP(AI75,$AA$10:$AF$110,6))) -> 0.82 | AI76: =IF(AH75>=$I$7,AH75,VLOOKUP(AH75,$D$10:$M$110,10)) -> 0.82 | AJ76: =AI76-AI75 -> 0.00 | AK76: =IF(AH76>=$AB$11,COUNTIF($AJ$10:AJ76,">0")-1,99999) -> 11.00 | AM76: 0.07 | AN76: =IF(AN75<=$I$6,AN75,VLOOKUP(AM75,$C$10:$D$110,2)) -> 0.07 | AO76: 0.00 | AP76: =IF(AM76<=$AB$11,COUNTIF($AO$10:AO76,"<0"),99999) -> 10.00 | AT76: 1.00 | AU76: 0.66 | AV76: 0.43 | AX76: =IF(AJ76<=0,0,COUNTIF($AJ$10:AJ76,">0")-1) -> 0.00 | AY76: 0.00 | AZ76: -1.00 | BA76: -1.00 | BC76: =IF(AO76>=0,0,COUNTIF($AO$10:AO76,"<0")) -> 0.00 | BD76: 0.00 | BE76: -1.00 | BF76: -1.00
B77: 101.1 | C77: 0.8 | D77: 0.670 | E77: 0.330 | F77: 895.4 | G77: 484.4 | H77: 1.000 | I77: 1.000 | J77: 1.178 | K77: 0.637 | L77: 1.849 | M77: 0.789 | N77: 0.210 | O77: 1.000 | P77: 101.1457283 | R77: 0.841 | S77: 0.841 | T77: 0.000 | V77: 0.1 | W77: 0.1 | X77: 0 | Z77: 0.670 | AA77: 0.70 | AD77: 0.436 | AE77: 0.53 | AF77: 0.67 | AG77: 0.44 | AH77: 0.82 | AI77: 0.82 | AJ77: 0.00 | AK77: =IF(AH77>=$AB$11,COUNTIF($AJ$10:AJ77,">0")-1,99999) -> 11.00 | AM77: 0.07 | AN77: 0.07 | AO77: 0.00 | AP77: =IF(AM77<=$AB$11,COUNTIF($AO$10:AO77,"<0"),99999) -> 10.00 | AT77: 1.00 | AU77: 0.67 | AV77: 0.43 | AX77: =IF(AJ77<=0,0,COUNTIF($AJ$10:AJ77,">0")-1) -> 0.00 | AY77: 0.00 | AZ77: -1.00 | BA77: -1.00 | BC77: =IF(AO77>=0,0,COUNTIF($AO$10:AO77,"<0")) -> 0.00 | BD77: 0.00 | BE77: -1.00 | BF77: -1.00
B78: 101.0 | C78: 0.8 | D78: 0.680 | E78: 0.320 | F78: 890.8 | G78: 481.2 | H78: 1.000 | I78: 1.000 | J78: 1.172 | K78: 0.633 | L78: 1.851 | M78: 0.797 | N78: 0.203 | O78: 1.000 | P78: 100.9707832 | R78: 0.841 | S78: 0.841 | T78: 0.000 | V78: 0.1 | W78: 0.1 | X78: 0 | Z78: 0.680 | AA78: 0.71 | AD78: 0.436 | AE78: 0.53 | AF78: 0.68 | AG78: 0.44 | AH78: 0.82 | AI78: 0.82 | AJ78: 0.00 | AK78: =IF(AH78>=$AB$11,COUNTIF($AJ$10:AJ78,">0")-1,99999) -> 11.00 | AM78: 0.07 | AN78: 0.07 | AO78: 0.00 | AP78: =IF(AM78<=$AB$11,COUNTIF($AO$10:AO78,"<0"),99999) -> 10.00 | AT78: 1.00 | AU78: 0.68 | AV78: 0.42 | AX78: =IF(AJ78<=0,0,COUNTIF($AJ$10:AJ78,">0")-1) -> 0.00 | AY78: 0.00 | AZ78: -1.00 | BA78: -1.00 | BC78: =IF(AO78>=0,0,COUNTIF($AO$10:AO78,"<0")) -> 0.00 | BD78: 0.00 | BE78: -1.00 | BF78: -1.00
B79: 100.8 | C79: 0.8 | D79: 0.690 | E79: 0.310 | F79: 886.3 | G79: 478.1 | H79: 1.000 | I79: 1.000 | J79: 1.166 | K79: 0.629 | L79: 1.854 | M79: 0.805 | N79: 0.195 | O79: 1.000 | P79: 100.7962415 | R79: 0.841 | S79: 0.841 | T79: 0.000 | V79: 0.1 | W79: 0.1 | X79: 0 | Z79: 0.690 | AA79: 0.72 | AD79: 0.436 | AE79: 0.53 | AF79: 0.69 | AG79: 0.44 | AH79: 0.82 | AI79: 0.82 | AJ79: 0.00 | AK79: =IF(AH79>=$AB$11,COUNTIF($AJ$10:AJ79,">0")-1,99999) -> 11.00 | AM79: 0.07 | AN79: 0.07 | AO79: 0.00 | AP79: =IF(AM79<=$AB$11,COUNTIF($AO$10:AO79,"<0"),99999) -> 10.00 | AT79: 1.00 | AU79: 0.69 | AV79: 0.42 | AX79: =IF(AJ79<=0,0,COUNTIF($AJ$10:AJ79,">0")-1) -> 0.00 | AY79: 0.00 | AZ79: -1.00 | BA79: -1.00 | BC79: =IF(AO79>=0,0,COUNTIF($AO$10:AO79,"<0")) -> 0.00 | BD79: 0.00 | BE79: -1.00 | BF79: -1.00
B80: 100.6 | C80: 0.8 | D80: 0.700 | E80: 0.300 | F80: 881.8 | G80: 475.0 | H80: 1.000 | I80: 1.000 | J80: 1.160 | K80: 0.625 | L80: 1.856 | M80: 0.812 | N80: 0.188 | O80: 1.000 | P80: 100.6220999 | R80: 0.841 | S80: 0.841 | T80: 0.000 | V80: 0.1 | W80: 0.1 | X80: 0 | Z80: 0.700 | AA80: 0.73 | AD80: 0.436 | AE80: 0.53 | AF80: 0.70 | AG80: 0.44 | AH80: 0.82 | AI80: 0.82 | AJ80: 0.00 | AK80: =IF(AH80>=$AB$11,COUNTIF($AJ$10:AJ80,">0")-1,99999) -> 11.00 | AM80: 0.07 | AN80: 0.07 | AO80: 0.00 | AP80: =IF(AM80<=$AB$11,COUNTIF($AO$10:AO80,"<0"),99999) -> 10.00 | AT80: 1.00 | AU80: 0.70 | AV80: 0.41 | AX80: =IF(AJ80<=0,0,COUNTIF($AJ$10:AJ80,">0")-1) -> 0.00 | AY80: 0.00 | AZ80: -1.00 | BA80: -1.00 | BC80: =IF(AO80>=0,0,COUNTIF($AO$10:AO80,"<0")) -> 0.00 | BD80: 0.00 | BE80: -1.00 | BF80: -1.00
B81: 100.4 | C81: 0.8 | D81: 0.710 | E81: 0.290 | F81: 877.4 | G81: 472.0 | H81: 1.000 | I81: 1.000 | J81: 1.154 | K81: 0.621 | L81: 1.859 | M81: 0.820 | N81: 0.180 | O81: 1.000 | P81: 100.4483607 | R81: 0.841 | S81: 0.841 | T81: 0.000 | V81: 0.1 | W81: 0.1 | X81: 0 | Z81: 0.710 | AA81: 0.73 | AD81: 0.436 | AE81: 0.53 | AF81: 0.71 | AG81: 0.44 | AH81: 0.82 | AI81: 0.82 | AJ81: 0.00 | AK81: =IF(AH81>=$AB$11,COUNTIF($AJ$10:AJ81,">0")-1,99999) -> 11.00 | AM81: 0.07 | AN81: 0.07 | AO81: 0.00 | AP81: =IF(AM81<=$AB$11,COUNTIF($AO$10:AO81,"<0"),99999) -> 10.00 | AT81: 1.00 | AU81: 0.71 | AV81: 0.41 | AX81: =IF(AJ81<=0,0,COUNTIF($AJ$10:AJ81,">0")-1) -> 0.00 | AY81: 0.00 | AZ81: -1.00 | BA81: -1.00 | BC81: =IF(AO81>=0,0,COUNTIF($AO$10:AO81,"<0")) -> 0.00 | BD81: 0.00 | BE81: -1.00 | BF81: -1.00
B82: 100.3 | C82: 0.8 | D82: 0.720 | E82: 0.280 | F82: 872.9 | G82: 468.9 | H82: 1.000 | I82: 1.000 | J82: 1.149 | K82: 0.617 | L82: 1.862 | M82: 0.827 | N82: 0.173 | O82: 1.000 | P82: 100.2750262 | R82: 0.841 | S82: 0.841 | T82: 0.000 | V82: 0.1 | W82: 0.1 | X82: 0 | Z82: 0.720 | AA82: 0.74 | AD82: 0.436 | AE82: 0.53 | AF82: 0.72 | AG82: 0.44 | AH82: 0.82 | AI82: 0.82 | AJ82: 0.00 | AK82: =IF(AH82>=$AB$11,COUNTIF($AJ$10:AJ82,">0")-1,99999) -> 11.00 | AM82: 0.07 | AN82: 0.07 | AO82: 0.00 | AP82: =IF(AM82<=$AB$11,COUNTIF($AO$10:AO82,"<0"),99999) -> 10.00 | AT82: 1.00 | AU82: 0.72 | AV82: 0.41 | AX82: =IF(AJ82<=0,0,COUNTIF($AJ$10:AJ82,">0")-1) -> 0.00 | AY82: 0.00 | AZ82: -1.00 | BA82: -1.00 | BC82: =IF(AO82>=0,0,COUNTIF($AO$10:AO82,"<0")) -> 0.00 | BD82: 0.00 | BE82: -1.00 | BF82: -1.00
B83: 100.1 | C83: 0.8 | D83: 0.730 | E83: 0.270 | F83: 868.6 | G83: 465.9 | H83: 1.000 | I83: 1.000 | J83: 1.143 | K83: 0.613 | L83: 1.864 | M83: 0.834 | N83: 0.166 | O83: 1.000 | P83: 100.1020989 | R83: 0.841 | S83: 0.841 | T83: 0.000 | V83: 0.1 | W83: 0.1 | X83: 0 | Z83: 0.730 | AA83: 0.75 | AD83: 0.436 | AE83: 0.53 | AF83: 0.73 | AG83: 0.44 | AH83: 0.82 | AI83: 0.82 | AJ83: 0.00 | AK83: =IF(AH83>=$AB$11,COUNTIF($AJ$10:AJ83,">0")-1,99999) -> 11.00 | AM83: 0.07 | AN83: 0.07 | AO83: 0.00 | AP83: =IF(AM83<=$AB$11,COUNTIF($AO$10:AO83,"<0"),99999) -> 10.00 | AT83: 1.00 | AU83: 0.73 | AV83: 0.40 | AX83: =IF(AJ83<=0,0,COUNTIF($AJ$10:AJ83,">0")-1) -> 0.00 | AY83: 0.00 | AZ83: -1.00 | BA83: -1.00 | BC83: =IF(AO83>=0,0,COUNTIF($AO$10:AO83,"<0")) -> 0.00 | BD83: 0.00 | BE83: -1.00 | BF83: -1.00
B84: 99.9 | C84: 0.8 | D84: 0.740 | E84: 0.260 | F84: 864.2 | G84: 462.9 | H84: 1.000 | I84: 1.000 | J84: 1.137 | K84: 0.609 | L84: 1.867 | M84: 0.841 | N84: 0.158 | O84: 1.000 | P84: 99.92958097 | R84: 0.841 | S84: 0.841 | T84: 0.000 | V84: 0.1 | W84: 0.1 | X84: 0 | Z84: 0.740 | AA84: 0.76 | AD84: 0.436 | AE84: 0.53 | AF84: 0.74 | AG84: 0.44 | AH84: 0.82 | AI84: 0.82 | AJ84: 0.00 | AK84: =IF(AH84>=$AB$11,COUNTIF($AJ$10:AJ84,">0")-1,99999) -> 11.00 | AM84: 0.07 | AN84: 0.07 | AO84: 0.00 | AP84: =IF(AM84<=$AB$11,COUNTIF($AO$10:AO84,"<0"),99999) -> 10.00 | AT84: 1.00 | AU84: 0.74 | AV84: 0.40 | AX84: =IF(AJ84<=0,0,COUNTIF($AJ$10:AJ84,">0")-1) -> 0.00 | AY84: 0.00 | AZ84: -1.00 | BA84: -1.00 | BC84: =IF(AO84>=0,0,COUNTIF($AO$10:AO84,"<0")) -> 0.00 | BD84: 0.00 | BE84: -1.00 | BF84: -1.00
B85: 99.8 | C85: 0.8 | D85: 0.750 | E85: 0.250 | F85: 859.8 | G85: 460.0 | H85: 1.000 | I85: 1.000 | J85: 1.131 | K85: 0.605 | L85: 1.869 | M85: 0.849 | N85: 0.151 | O85: 1.000 | P85: 99.75747497 | R85: 0.841 | S85: 0.841 | T85: 0.000 | V85: 0.1 | W85: 0.1 | X85: 0 | Z85: 0.750 | AA85: 0.76 | AD85: 0.436 | AE85: 0.53 | AF85: 0.75 | AG85: 0.44 | AH85: 0.82 | AI85: 0.82 | AJ85: 0.00 | AK85: =IF(AH85>=$AB$11,COUNTIF($AJ$10:AJ85,">0")-1,99999) -> 11.00 | AM85: 0.07 | AN85: 0.07 | AO85: 0.00 | AP85: =IF(AM85<=$AB$11,COUNTIF($AO$10:AO85,"<0"),99999) -> 10.00 | AT85: 1.00 | AU85: 0.75 | AV85: 0.39 | AX85: =IF(AJ85<=0,0,COUNTIF($AJ$10:AJ85,">0")-1) -> 0.00 | AY85: 0.00 | AZ85: -1.00 | BA85: -1.00 | BC85: =IF(AO85>=0,0,COUNTIF($AO$10:AO85,"<0")) -> 0.00 | BD85: 0.00 | BE85: -1.00 | BF85: -1.00
B86: 99.6 | C86: 0.9 | D86: 0.760 | E86: 0.240 | F86: 855.5 | G86: 457.0 | H86: 1.000 | I86: 1.000 | J86: 1.126 | K86: 0.601 | L86: 1.872 | M86: 0.856 | N86: 0.144 | O86: 1.000 | P86: 99.58578327 | R86: 0.841 | S86: 0.841 | T86: 0.000 | V86: 0.1 | W86: 0.1 | X86: 0 | Z86: 0.760 | AA86: 0.77 | AD86: 0.436 | AE86: 0.53 | AF86: 0.76 | AG86: 0.44 | AH86: 0.82 | AI86: 0.82 | AJ86: 0.00 | AK86: =IF(AH86>=$AB$11,COUNTIF($AJ$10:AJ86,">0")-1,99999) -> 11.00 | AM86: 0.07 | AN86: 0.07 | AO86: 0.00 | AP86: =IF(AM86<=$AB$11,COUNTIF($AO$10:AO86,"<0"),99999) -> 10.00 | AT86: 1.00 | AU86: 0.76 | AV86: 0.39 | AX86: =IF(AJ86<=0,0,COUNTIF($AJ$10:AJ86,">0")-1) -> 0.00 | AY86: 0.00 | AZ86: -1.00 | BA86: -1.00 | BC86: =IF(AO86>=0,0,COUNTIF($AO$10:AO86,"<0")) -> 0.00 | BD86: 0.00 | BE86: -1.00 | BF86: -1.00
B87: 99.4 | C87: 0.9 | D87: 0.770 | E87: 0.230 | F87: 851.2 | G87: 454.1 | H87: 1.000 | I87: 1.000 | J87: 1.120 | K87: 0.598 | L87: 1.875 | M87: 0.862 | N87: 0.137 | O87: 1.000 | P87: 99.41450829 | R87: 0.841 | S87: 0.841 | T87: 0.000 | V87: 0.1 | W87: 0.1 | X87: 0 | Z87: 0.770 | AA87: 0.78 | AD87: 0.436 | AE87: 0.53 | AF87: 0.77 | AG87: 0.44 | AH87: 0.82 | AI87: 0.82 | AJ87: 0.00 | AK87: =IF(AH87>=$AB$11,COUNTIF($AJ$10:AJ87,">0")-1,99999) -> 11.00 | AM87: 0.07 | AN87: 0.07 | AO87: 0.00 | AP87: =IF(AM87<=$AB$11,COUNTIF($AO$10:AO87,"<0"),99999) -> 10.00 | AT87: 1.00 | AU87: 0.77 | AV87: 0.38 | AX87: =IF(AJ87<=0,0,COUNTIF($AJ$10:AJ87,">0")-1) -> 0.00 | AY87: 0.00 | AZ87: -1.00 | BA87: -1.00 | BC87: =IF(AO87>=0,0,COUNTIF($AO$10:AO87,"<0")) -> 0.00 | BD87: 0.00 | BE87: -1.00 | BF87: -1.00
B88: 99.2 | C88: 0.9 | D88: 0.780 | E88: 0.220 | F88: 847.0 | G88: 451.2 | H88: 1.000 | I88: 1.000 | J88: 1.114 | K88: 0.594 | L88: 1.877 | M88: 0.869 | N88: 0.131 | O88: 1.000 | P88: 99.24354362 | R88: 0.841 | S88: 0.841 | T88: 0.000 | V88: 0.1 | W88: 0.1 | X88: 0 | Z88: 0.780 | AA88: 0.79 | AD88: 0.436 | AE88: 0.53 | AF88: 0.78 | AG88: 0.44 | AH88: 0.82 | AI88: 0.82 | AJ88: 0.00 | AK88: =IF(AH88>=$AB$11,COUNTIF($AJ$10:AJ88,">0")-1,99999) -> 11.00 | AM88: 0.07 | AN88: 0.07 | AO88: 0.00 | AP88: =IF(AM88<=$AB$11,COUNTIF($AO$10:AO88,"<0"),99999) -> 10.00 | AT88: 1.00 | AU88: 0.78 | AV88: 0.38 | AX88: =IF(AJ88<=0,0,COUNTIF($AJ$10:AJ88,">0")-1) -> 0.00 | AY88: 0.00 | AZ88: -1.00 | BA88: -1.00 | BC88: =IF(AO88>=0,0,COUNTIF($AO$10:AO88,"<0")) -> 0.00 | BD88: 0.00 | BE88: -1.00 | BF88: -1.00
B89: 99.1 | C89: 0.9 | D89: 0.790 | E89: 0.210 | F89: 842.8 | G89: 448.3 | H89: 1.000 | I89: 1.000 | J89: 1.109 | K89: 0.590 | L89: 1.880 | M89: 0.876 | N89: 0.124 | O89: 1.000 | P89: 99.07320535 | R89: 0.841 | S89: 0.841 | T89: 0.000 | V89: 0.1 | W89: 0.1 | X89: 0 | Z89: 0.790 | AA89: 0.79 | AD89: 0.436 | AE89: 0.53 | AF89: 0.79 | AG89: 0.44 | AH89: 0.82 | AI89: 0.82 | AJ89: 0.00 | AK89: =IF(AH89>=$AB$11,COUNTIF($AJ$10:AJ89,">0")-1,99999) -> 11.00 | AM89: 0.07 | AN89: 0.07 | AO89: 0.00 | AP89: =IF(AM89<=$AB$11,COUNTIF($AO$10:AO89,"<0"),99999) -> 10.00 | AT89: 1.00 | AU89: 0.79 | AV89: 0.38 | AX89: =IF(AJ89<=0,0,COUNTIF($AJ$10:AJ89,">0")-1) -> 0.00 | AY89: 0.00 | AZ89: -1.00 | BA89: -1.00 | BC89: =IF(AO89>=0,0,COUNTIF($AO$10:AO89,"<0")) -> 0.00 | BD89: 0.00 | BE89: -1.00 | BF89: -1.00
B90: 98.9 | C90: 0.9 | D90: 0.800 | E90: 0.200 | F90: 838.5 | G90: 445.5 | H90: 1.000 | I90: 1.000 | J90: 1.103 | K90: 0.586 | L90: 1.882 | M90: 0.883 | N90: 0.117 | O90: 1.000 | P90: 98.90327564 | R90: 0.841 | S90: 0.841 | T90: 0.000 | V90: 0.1 | W90: 0.1 | X90: 0 | Z90: 0.800 | AA90: 0.80 | AD90: 0.436 | AE90: 0.53 | AF90: 0.80 | AG90: 0.44 | AH90: 0.82 | AI90: 0.82 | AJ90: 0.00 | AK90: =IF(AH90>=$AB$11,COUNTIF($AJ$10:AJ90,">0")-1,99999) -> 11.00 | AM90: 0.07 | AN90: 0.07 | AO90: 0.00 | AP90: =IF(AM90<=$AB$11,COUNTIF($AO$10:AO90,"<0"),99999) -> 10.00 | AT90: 1.00 | AU90: 0.80 | AV90: 0.37 | AX90: =IF(AJ90<=0,0,COUNTIF($AJ$10:AJ90,">0")-1) -> 0.00 | AY90: 0.00 | AZ90: -1.00 | BA90: -1.00 | BC90: =IF(AO90>=0,0,COUNTIF($AO$10:AO90,"<0")) -> 0.00 | BD90: 0.00 | BE90: -1.00 | BF90: -1.00
B91: 98.7 | C91: 0.9 | D91: 0.810 | E91: 0.190 | F91: 834.4 | G91: 442.7 | H91: 1.000 | I91: 1.000 | J91: 1.098 | K91: 0.582 | L91: 1.885 | M91: 0.889 | N91: 0.111 | O91: 1.000 | P91: 98.7336243 | R91: 0.841 | S91: 0.841 | T91: 0.000 | V91: 0.1 | W91: 0.1 | X91: 0 | Z91: 0.800 | AA91: 0.80 | AD91: 0.436 | AE91: 0.53 | AF91: 0.80 | AG91: 0.44 | AH91: 0.82 | AI91: 0.82 | AJ91: 0.00 | AK91: =IF(AH91>=$AB$11,COUNTIF($AJ$10:AJ91,">0")-1,99999) -> 11.00 | AM91: 0.07 | AN91: 0.07 | AO91: 0.00 | AP91: =IF(AM91<=$AB$11,COUNTIF($AO$10:AO91,"<0"),99999) -> 10.00 | AT91: 1.00 | AU91: 0.81 | AV91: 0.37 | AX91: =IF(AJ91<=0,0,COUNTIF($AJ$10:AJ91,">0")-1) -> 0.00 | AY91: 0.00 | AZ91: -1.00 | BA91: -1.00 | BC91: =IF(AO91>=0,0,COUNTIF($AO$10:AO91,"<0")) -> 0.00 | BD91: 0.00 | BE91: -1.00 | BF91: -1.00
B92: 98.6 | C92: 0.9 | D92: 0.820 | E92: 0.180 | F92: 830.2 | G92: 439.9 | H92: 1.000 | I92: 1.000 | J92: 1.092 | K92: 0.579 | L92: 1.887 | M92: 0.896 | N92: 0.104 | O92: 1.000 | P92: 98.5644695 | R92: 0.841 | S92: 0.841 | T92: 0.000 | V92: 0.1 | W92: 0.1 | X92: 0 | Z92: 0.800 | AA92: 0.80 | AD92: 0.436 | AE92: 0.53 | AF92: 0.80 | AG92: 0.44 | AH92: 0.82 | AI92: 0.82 | AJ92: 0.00 | AK92: =IF(AH92>=$AB$11,COUNTIF($AJ$10:AJ92,">0")-1,99999) -> 11.00 | AM92: 0.07 | AN92: 0.07 | AO92: 0.00 | AP92: =IF(AM92<=$AB$11,COUNTIF($AO$10:AO92,"<0"),99999) -> 10.00 | AT92: 1.00 | AU92: 0.82 | AV92: 0.36 | AX92: =IF(AJ92<=0,0,COUNTIF($AJ$10:AJ92,">0")-1) -> 0.00 | AY92: 0.00 | AZ92: -1.00 | BA92: -1.00 | BC92: =IF(AO92>=0,0,COUNTIF($AO$10:AO92,"<0")) -> 0.00 | BD92: 0.00 | BE92: -1.00 | BF92: -1.00
B93: 98.4 | C93: 0.9 | D93: 0.830 | E93: 0.170 | F93: 826.1 | G93: 437.1 | H93: 1.000 | I93: 1.000 | J93: 1.087 | K93: 0.575 | L93: 1.890 | M93: 0.902 | N93: 0.098 | O93: 1.000 | P93: 98.39574611 | R93: 0.841 | S93: 0.841 | T93: 0.000 | V93: 0.1 | W93: 0.1 | X93: 0 | Z93: 0.800 | AA93: 0.80 | AD93: 0.436 | AE93: 0.53 | AF93: 0.80 | AG93: 0.44 | AH93: 0.82 | AI93: 0.82 | AJ93: 0.00 | AK93: =IF(AH93>=$AB$11,COUNTIF($AJ$10:AJ93,">0")-1,99999) -> 11.00 | AM93: 0.07 | AN93: 0.07 | AO93: 0.00 | AP93: =IF(AM93<=$AB$11,COUNTIF($AO$10:AO93,"<0"),99999) -> 10.00 | AT93: 1.00 | AU93: 0.83 | AV93: 0.36 | AX93: =IF(AJ93<=0,0,COUNTIF($AJ$10:AJ93,">0")-1) -> 0.00 | AY93: 0.00 | AZ93: -1.00 | BA93: -1.00 | BC93: =IF(AO93>=0,0,COUNTIF($AO$10:AO93,"<0")) -> 0.00 | BD93: 0.00 | BE93: -1.00 | BF93: -1.00
B94: 98.2 | C94: 0.9 | D94: 0.840 | E94: 0.160 | F94: 822.0 | G94: 434.3 | H94: 1.000 | I94: 1.000 | J94: 1.082 | K94: 0.571 | L94: 1.893 | M94: 0.909 | N94: 0.091 | O94: 1.000 | P94: 98.22745661 | R94: 0.841 | S94: 0.841 | T94: 0.000 | V94: 0.1 | W94: 0.1 | X94: 0 | Z94: 0.800 | AA94: 0.80 | AD94: 0.436 | AE94: 0.53 | AF94: 0.80 | AG94: 0.44 | AH94: 0.82 | AI94: 0.82 | AJ94: 0.00 | AK94: =IF(AH94>=$AB$11,COUNTIF($AJ$10:AJ94,">0")-1,99999) -> 11.00 | AM94: 0.07 | AN94: 0.07 | AO94: 0.00 | AP94: =IF(AM94<=$AB$11,COUNTIF($AO$10:AO94,"<0"),99999) -> 10.00 | AT94: 1.00 | AU94: 0.84 | AV94: 0.35 | AX94: =IF(AJ94<=0,0,COUNTIF($AJ$10:AJ94,">0")-1) -> 0.00 | AY94: 0.00 | AZ94: -1.00 | BA94: -1.00 | BC94: =IF(AO94>=0,0,COUNTIF($AO$10:AO94,"<0")) -> 0.00 | BD94: 0.00 | BE94: -1.00 | BF94: -1.00
B95: 98.1 | C95: 0.9 | D95: 0.850 | E95: 0.150 | F95: 817.9 | G95: 431.6 | H95: 1.000 | I95: 1.000 | J95: 1.076 | K95: 0.568 | L95: 1.895 | M95: 0.915 | N95: 0.085 | O95: 1.000 | P95: 98.05960354 | R95: 0.841 | S95: 0.841 | T95: 0.000 | V95: 0.1 | W95: 0.1 | X95: 0 | Z95: 0.800 | AA95: 0.80 | AD95: 0.436 | AE95: 0.53 | AF95: 0.80 | AG95: 0.44 | AH95: 0.82 | AI95: 0.82 | AJ95: 0.00 | AK95: =IF(AH95>=$AB$11,COUNTIF($AJ$10:AJ95,">0")-1,99999) -> 11.00 | AM95: 0.07 | AN95: 0.07 | AO95: 0.00 | AP95: =IF(AM95<=$AB$11,COUNTIF($AO$10:AO95,"<0"),99999) -> 10.00 | AT95: 1.00 | AU95: 0.85 | AV95: 0.35 | AX95: =IF(AJ95<=0,0,COUNTIF($AJ$10:AJ95,">0")-1) -> 0.00 | AY95: 0.00 | AZ95: -1.00 | BA95: -1.00 | BC95: =IF(AO95>=0,0,COUNTIF($AO$10:AO95,"<0")) -> 0.00 | BD95: 0.00 | BE95: -1.00 | BF95: -1.00
B96: 97.9 | C96: 0.9 | D96: 0.860 | E96: 0.140 | F96: 813.9 | G96: 428.9 | H96: 1.000 | I96: 1.000 | J96: 1.071 | K96: 0.564 | L96: 1.898 | M96: 0.921 | N96: 0.079 | O96: 1.000 | P96: 97.89218948 | R96: 0.841 | S96: 0.841 | T96: 0.000 | V96: 0.1 | W96: 0.1 | X96: 0 | Z96: 0.800 | AA96: 0.80 | AD96: 0.436 | AE96: 0.53 | AF96: 0.80 | AG96: 0.44 | AH96: 0.82 | AI96: 0.82 | AJ96: 0.00 | AK96: =IF(AH96>=$AB$11,COUNTIF($AJ$10:AJ96,">0")-1,99999) -> 11.00 | AM96: 0.07 | AN96: 0.07 | AO96: 0.00 | AP96: =IF(AM96<=$AB$11,COUNTIF($AO$10:AO96,"<0"),99999) -> 10.00 | AT96: 1.00 | AU96: 0.86 | AV96: 0.35 | AX96: =IF(AJ96<=0,0,COUNTIF($AJ$10:AJ96,">0")-1) -> 0.00 | AY96: 0.00 | AZ96: -1.00 | BA96: -1.00 | BC96: =IF(AO96>=0,0,COUNTIF($AO$10:AO96,"<0")) -> 0.00 | BD96: 0.00 | BE96: -1.00 | BF96: -1.00
B97: 97.7 | C97: 0.9 | D97: 0.870 | E97: 0.130 | F97: 809.9 | G97: 426.2 | H97: 1.000 | I97: 1.000 | J97: 1.066 | K97: 0.561 | L97: 1.900 | M97: 0.927 | N97: 0.073 | O97: 1.000 | P97: 97.72521706 | R97: 0.841 | S97: 0.841 | T97: 0.000 | V97: 0.1 | W97: 0.1 | X97: 0 | Z97: 0.800 | AA97: 0.80 | AD97: 0.436 | AE97: 0.53 | AF97: 0.80 | AG97: 0.44 | AH97: 0.82 | AI97: 0.82 | AJ97: 0.00 | AK97: =IF(AH97>=$AB$11,COUNTIF($AJ$10:AJ97,">0")-1,99999) -> 11.00 | AM97: 0.07 | AN97: 0.07 | AO97: 0.00 | AP97: =IF(AM97<=$AB$11,COUNTIF($AO$10:AO97,"<0"),99999) -> 10.00 | AT97: 1.00 | AU97: 0.87 | AV97: 0.34 | AX97: =IF(AJ97<=0,0,COUNTIF($AJ$10:AJ97,">0")-1) -> 0.00 | AY97: 0.00 | AZ97: -1.00 | BA97: -1.00 | BC97: =IF(AO97>=0,0,COUNTIF($AO$10:AO97,"<0")) -> 0.00 | BD97: 0.00 | BE97: -1.00 | BF97: -1.00
B98: 97.6 | C98: 0.9 | D98: 0.880 | E98: 0.120 | F98: 806.6 | G98: 424.0 | H98: 1.000 | I98: 1.000 | J98: 1.061 | K98: 0.558 | L98: 1.902 | M98: 0.934 | N98: 0.067 | O98: 1.001 | P98: 97.5904858 | R98: 0.841 | S98: 0.841 | T98: 0.000 | V98: 0.1 | W98: 0.1 | X98: 0 | Z98: 0.800 | AA98: 0.80 | AD98: 0.436 | AE98: 0.53 | AF98: 0.80 | AG98: 0.44 | AH98: 0.82 | AI98: 0.82 | AJ98: 0.00 | AK98: =IF(AH98>=$AB$11,COUNTIF($AJ$10:AJ98,">0")-1,99999) -> 11.00 | AM98: 0.07 | AN98: 0.07 | AO98: 0.00 | AP98: =IF(AM98<=$AB$11,COUNTIF($AO$10:AO98,"<0"),99999) -> 10.00 | AT98: 1.00 | AU98: 0.88 | AV98: 0.34 | AX98: =IF(AJ98<=0,0,COUNTIF($AJ$10:AJ98,">0")-1) -> 0.00 | AY98: 0.00 | AZ98: -1.00 | BA98: -1.00 | BC98: =IF(AO98>=0,0,COUNTIF($AO$10:AO98,"<0")) -> 0.00 | BD98: 0.00 | BE98: -1.00 | BF98: -1.00
B99: 97.4 | C99: 0.9 | D99: 0.890 | E99: 0.110 | F99: 802.5 | G99: 421.2 | H99: 1.000 | I99: 1.000 | J99: 1.056 | K99: 0.554 | L99: 1.905 | M99: 0.940 | N99: 0.061 | O99: 1.001 | P99: 97.41815454 | R99: 0.841 | S99: 0.841 | T99: 0.000 | V99: 0.1 | W99: 0.1 | X99: 0 | Z99: 0.800 | AA99: 0.80 | AD99: 0.436 | AE99: 0.53 | AF99: 0.80 | AG99: 0.44 | AH99: 0.82 | AI99: 0.82 | AJ99: 0.00 | AK99: =IF(AH99>=$AB$11,COUNTIF($AJ$10:AJ99,">0")-1,99999) -> 11.00 | AM99: 0.07 | AN99: 0.07 | AO99: 0.00 | AP99: =IF(AM99<=$AB$11,COUNTIF($AO$10:AO99,"<0"),99999) -> 10.00 | AT99: 1.00 | AU99: 0.89 | AV99: 0.33 | AX99: =IF(AJ99<=0,0,COUNTIF($AJ$10:AJ99,">0")-1) -> 0.00 | AY99: 0.00 | AZ99: -1.00 | BA99: -1.00 | BC99: =IF(AO99>=0,0,COUNTIF($AO$10:AO99,"<0")) -> 0.00 | BD99: 0.00 | BE99: -1.00 | BF99: -1.00
B100: 97.2 | C100: 0.9 | D100: 0.900 | E100: 0.100 | F100: 798.4 | G100: 418.5 | H100: 1.000 | I100: 1.000 | J100: 1.051 | K100: 0.551 | L100: 1.908 | M100: 0.946 | N100: 0.055 | O100: 1.001 | P100: 97.24680329 | R100: 0.841 | S100: 0.841 | T100: 0.000 | V100: 0.1 | W100: 0.1 | X100: 0 | Z100: 0.800 | AA100: 0.80 | AD100: 0.436 | AE100: 0.53 | AF100: 0.80 | AG100: 0.44 | AH100: 0.82 | AI100: 0.82 | AJ100: 0.00 | AK100: =IF(AH100>=$AB$11,COUNTIF($AJ$10:AJ100,">0")-1,99999) -> 11.00 | AM100: 0.07 | AN100: 0.07 | AO100: 0.00 | AP100: =IF(AM100<=$AB$11,COUNTIF($AO$10:AO100,"<0"),99999) -> 10.00 | AT100: 1.00 | AU100: 0.90 | AV100: 0.33 | AX100: =IF(AJ100<=0,0,COUNTIF($AJ$10:AJ100,">0")-1) -> 0.00 | AY100: 0.00 | AZ100: -1.00 | BA100: -1.00 | BC100: =IF(AO100>=0,0,COUNTIF($AO$10:AO100,"<0")) -> 0.00 | BD100: 0.00 | BE100: -1.00 | BF100: -1.00
B101: 97.1 | C101: 1.0 | D101: 0.910 | E101: 0.090 | F101: 794.4 | G101: 415.8 | H101: 1.000 | I101: 1.000 | J101: 1.045 | K101: 0.547 | L101: 1.910 | M101: 0.951 | N101: 0.049 | O101: 1.000 | P101: 97.07646329 | R101: 0.841 | S101: 0.841 | T101: 0.000 | V101: 0.1 | W101: 0.1 | X101: 0 | Z101: 0.800 | AA101: 0.80 | AD101: 0.436 | AE101: 0.53 | AF101: 0.80 | AG101: 0.44 | AH101: 0.82 | AI101: 0.82 | AJ101: 0.00 | AK101: =IF(AH101>=$AB$11,COUNTIF($AJ$10:AJ101,">0")-1,99999) -> 11.00 | AM101: 0.07 | AN101: 0.07 | AO101: 0.00 | AP101: =IF(AM101<=$AB$11,COUNTIF($AO$10:AO101,"<0"),99999) -> 10.00 | AT101: 1.00 | AU101: 0.91 | AV101: 0.32 | AX101: =IF(AJ101<=0,0,COUNTIF($AJ$10:AJ101,">0")-1) -> 0.00 | AY101: 0.00 | AZ101: -1.00 | BA101: -1.00 | BC101: =IF(AO101>=0,0,COUNTIF($AO$10:AO101,"<0")) -> 0.00 | BD101: 0.00 | BE101: -1.00 | BF101: -1.00
B102: 96.9 | C102: 1.0 | D102: 0.920 | E102: 0.080 | F102: 790.4 | G102: 413.2 | H102: 1.000 | I102: 1.000 | J102: 1.040 | K102: 0.544 | L102: 1.913 | M102: 0.957 | N102: 0.043 | O102: 1.000 | P102: 96.90717296 | R102: 0.841 | S102: 0.841 | T102: 0.000 | V102: 0.1 | W102: 0.1 | X102: 0 | Z102: 0.800 | AA102: 0.80 | AD102: 0.436 | AE102: 0.53 | AF102: 0.80 | AG102: 0.44 | AH102: 0.82 | AI102: 0.82 | AJ102: 0.00 | AK102: =IF(AH102>=$AB$11,COUNTIF($AJ$10:AJ102,">0")-1,99999) -> 11.00 | AM102: 0.07 | AN102: 0.07 | AO102: 0.00 | AP102: =IF(AM102<=$AB$11,COUNTIF($AO$10:AO102,"<0"),99999) -> 10.00 | AT102: 1.00 | AU102: 0.92 | AV102: 0.32 | AX102: =IF(AJ102<=0,0,COUNTIF($AJ$10:AJ102,">0")-1) -> 0.00 | AY102: 0.00 | AZ102: -1.00 | BA102: -1.00 | BC102: =IF(AO102>=0,0,COUNTIF($AO$10:AO102,"<0")) -> 0.00 | BD102: 0.00 | BE102: -1.00 | BF102: -1.00
B103: 96.7 | C103: 1.0 | D103: 0.930 | E103: 0.070 | F103: 786.5 | G103: 410.5 | H103: 1.000 | I103: 1.000 | J103: 1.035 | K103: 0.540 | L103: 1.916 | M103: 0.962 | N103: 0.038 | O103: 1.000 | P103: 96.73896859 | R103: 0.841 | S103: 0.841 | T103: 0.000 | V103: 0.1 | W103: 0.1 | X103: 0 | Z103: 0.800 | AA103: 0.80 | AD103: 0.436 | AE103: 0.53 | AF103: 0.80 | AG103: 0.44 | AH103: 0.82 | AI103: 0.82 | AJ103: 0.00 | AK103: =IF(AH103>=$AB$11,COUNTIF($AJ$10:AJ103,">0")-1,99999) -> 11.00 | AM103: 0.07 | AN103: 0.07 | AO103: 0.00 | AP103: =IF(AM103<=$AB$11,COUNTIF($AO$10:AO103,"<0"),99999) -> 10.00 | AT103: 1.00 | AU103: 0.93 | AV103: 0.32 | AX103: =IF(AJ103<=0,0,COUNTIF($AJ$10:AJ103,">0")-1) -> 0.00 | AY103: 0.00 | AZ103: -1.00 | BA103: -1.00 | BC103: =IF(AO103>=0,0,COUNTIF($AO$10:AO103,"<0")) -> 0.00 | BD103: 0.00 | BE103: -1.00 | BF103: -1.00
B104: 96.6 | C104: 1.0 | D104: 0.940 | E104: 0.060 | F104: 782.5 | G104: 407.9 | H104: 1.000 | I104: 1.000 | J104: 1.030 | K104: 0.537 | L104: 1.918 | M104: 0.968 | N104: 0.032 | O104: 1.000 | P104: 96.57189456 | R104: 0.841 | S104: 0.841 | T104: 0.000 | V104: 0.1 | W104: 0.1 | X104: 0 | Z104: 0.800 | AA104: 0.80 | AD104: 0.436 | AE104: 0.53 | AF104: 0.80 | AG104: 0.44 | AH104: 0.82 | AI104: 0.82 | AJ104: 0.00 | AK104: =IF(AH104>=$AB$11,COUNTIF($AJ$10:AJ104,">0")-1,99999) -> 11.00 | AM104: 0.07 | AN104: 0.07 | AO104: 0.00 | AP104: =IF(AM104<=$AB$11,COUNTIF($AO$10:AO104,"<0"),99999) -> 10.00 | AT104: 1.00 | AU104: 0.94 | AV104: 0.31 | AX104: =IF(AJ104<=0,0,COUNTIF($AJ$10:AJ104,">0")-1) -> 0.00 | AY104: 0.00 | AZ104: -1.00 | BA104: -1.00 | BC104: =IF(AO104>=0,0,COUNTIF($AO$10:AO104,"<0")) -> 0.00 | BD104: 0.00 | BE104: -1.00 | BF104: -1.00
B105: 96.4 | C105: 1.0 | D105: 0.950 | E105: 0.050 | F105: 778.1 | G105: 405.0 | H105: 1.000 | I105: 1.000 | J105: 1.024 | K105: 0.533 | L105: 1.921 | M105: 0.973 | N105: 0.027 | O105: 0.999 | P105: 96.38022268 | R105: 0.841 | S105: 0.841 | T105: 0.000 | V105: 0.1 | W105: 0.1 | X105: 0 | Z105: 0.800 | AA105: 0.80 | AD105: 0.436 | AE105: 0.53 | AF105: 0.80 | AG105: 0.44 | AH105: 0.82 | AI105: 0.82 | AJ105: 0.00 | AK105: =IF(AH105>=$AB$11,COUNTIF($AJ$10:AJ105,">0")-1,99999) -> 11.00 | AM105: 0.07 | AN105: 0.07 | AO105: 0.00 | AP105: =IF(AM105<=$AB$11,COUNTIF($AO$10:AO105,"<0"),99999) -> 10.00 | AT105: 1.00 | AU105: 0.95 | AV105: 0.31 | AX105: =IF(AJ105<=0,0,COUNTIF($AJ$10:AJ105,">0")-1) -> 0.00 | AY105: 0.00 | AZ105: -1.00 | BA105: -1.00 | BC105: =IF(AO105>=0,0,COUNTIF($AO$10:AO105,"<0")) -> 0.00 | BD105: 0.00 | BE105: -1.00 | BF105: -1.00
B106: 96.2 | C106: 1.0 | D106: 0.960 | E106: 0.040 | F106: 774.8 | G106: 402.8 | H106: 1.000 | I106: 1.000 | J106: 1.020 | K106: 0.530 | L106: 1.924 | M106: 0.979 | N106: 0.021 | O106: 1.000 | P106: 96.24133547 | R106: 0.841 | S106: 0.841 | T106: 0.000 | V106: 0.1 | W106: 0.1 | X106: 0 | Z106: 0.800 | AA106: =$BL$4*Z106+$BI$2/$BI$5*$I$7 -> 0.80 | AD106: 0.436 | AE106: =$BL$5*AD106-$BI$3/$BI$7*$I$6 -> 0.53 | AF106: 0.80 | AG106: 0.44 | AH106: 0.82 | AI106: 0.82 | AJ106: 0.00 | AK106: =IF(AH106>=$AB$11,COUNTIF($AJ$10:AJ106,">0")-1,99999) -> 11.00 | AM106: 0.07 | AN106: 0.07 | AO106: 0.00 | AP106: =IF(AM106<=$AB$11,COUNTIF($AO$10:AO106,"<0"),99999) -> 10.00 | AT106: 1.00 | AU106: 0.96 | AV106: =IF($M$3=1,D106,IF($M$3/($M$3-1)*AU106-$I$5/($M$3-1)>M106,M106,$M$3/($M$3-1)*AU106-$I$5/($M$3-1))) -> 0.30 | AX106: =IF(AJ106<=0,0,COUNTIF($AJ$10:AJ106,">0")-1) -> 0.00 | AY106: 0.00 | AZ106: -1.00 | BA106: -1.00 | BC106: =IF(AO106>=0,0,COUNTIF($AO$10:AO106,"<0")) -> 0.00 | BD106: 0.00 | BE106: -1.00 | BF106: -1.00
B107: 96.1 | C107: 1.0 | D107: 0.970 | E107: 0.030 | F107: 771.1 | G107: 400.3 | H107: 1.000 | I107: 1.000 | J107: 1.015 | K107: 0.527 | L107: 1.926 | M107: 0.984 | N107: 0.016 | O107: 1.000 | P107: 96.07796353 | R107: 0.841 | S107: 0.841 | T107: 0.000 | V107: 0.1 | W107: 0.1 | X107: 0 | Z107: 0.800 | AA107: 0.80 | AD107: 0.436 | AE107: 0.53 | AF107: 0.80 | AG107: 0.44 | AH107: 0.82 | AI107: 0.82 | AJ107: 0.00 | AK107: =IF(AH107>=$AB$11,COUNTIF($AJ$10:AJ107,">0")-1,99999) -> 11.00 | AM107: 0.07 | AN107: 0.07 | AO107: 0.00 | AP107: =IF(AM107<=$AB$11,COUNTIF($AO$10:AO107,"<0"),99999) -> 10.00 | AT107: 1.00 | AU107: 0.97 | AV107: 0.30 | AX107: =IF(AJ107<=0,0,COUNTIF($AJ$10:AJ107,">0")-1) -> 0.00 | AY107: 0.00 | AZ107: -1.00 | BA107: -1.00 | BC107: =IF(AO107>=0,0,COUNTIF($AO$10:AO107,"<0")) -> 0.00 | BD107: 0.00 | BE107: -1.00 | BF107: -1.00
B108: 95.9 | C108: 1.0 | D108: 0.980 | E108: 0.020 | F108: 767.3 | G108: 397.9 | H108: 1.000 | I108: 1.000 | J108: 1.010 | K108: 0.524 | L108: 1.929 | M108: 0.989 | N108: 0.010 | O108: 1.000 | P108: 95.9159497 | R108: 0.841 | S108: 0.841 | T108: 0.000 | V108: 0.1 | W108: 0.1 | X108: 0 | Z108: 0.800 | AA108: 0.80 | AD108: 0.436 | AE108: 0.53 | AF108: 0.80 | AG108: 0.44 | AH108: 0.82 | AI108: 0.82 | AJ108: 0.00 | AK108: =IF(AH108>=$AB$11,COUNTIF($AJ$10:AJ108,">0")-1,99999) -> 11.00 | AM108: 0.07 | AN108: 0.07 | AO108: 0.00 | AP108: =IF(AM108<=$AB$11,COUNTIF($AO$10:AO108,"<0"),99999) -> 10.00 | AT108: 1.00 | AU108: 0.98 | AV108: 0.29 | AX108: =IF(AJ108<=0,0,COUNTIF($AJ$10:AJ108,">0")-1) -> 0.00 | AY108: 0.00 | AZ108: -1.00 | BA108: -1.00 | BC108: =IF(AO108>=0,0,COUNTIF($AO$10:AO108,"<0")) -> 0.00 | BD108: 0.00 | BE108: -1.00 | BF108: -1.00
B109: 95.8 | C109: 1.0 | D109: 0.990 | E109: 0.010 | F109: 763.6 | G109: 395.4 | H109: 1.000 | I109: 1.000 | J109: 1.005 | K109: 0.520 | L109: 1.931 | M109: 0.995 | N109: 0.005 | O109: 1.000 | P109: 95.75536831 | R109: 0.841 | S109: 0.841 | T109: 0.000 | V109: 0.1 | W109: 0.1 | X109: 0 | Z109: 0.800 | AA109: 0.80 | AD109: 0.436 | AE109: 0.53 | AF109: 0.80 | AG109: 0.44 | AH109: 0.82 | AI109: 0.82 | AJ109: 0.00 | AK109: =IF(AH109>=$AB$11,COUNTIF($AJ$10:AJ109,">0")-1,99999) -> 11.00 | AM109: 0.07 | AN109: 0.07 | AO109: 0.00 | AP109: =IF(AM109<=$AB$11,COUNTIF($AO$10:AO109,"<0"),99999) -> 10.00 | AT109: 1.00 | AU109: 0.99 | AV109: 0.29 | AX109: =IF(AJ109<=0,0,COUNTIF($AJ$10:AJ109,">0")-1) -> 0.00 | AY109: 0.00 | AZ109: -1.00 | BA109: -1.00 | BC109: =IF(AO109>=0,0,COUNTIF($AO$10:AO109,"<0")) -> 0.00 | BD109: 0.00 | BE109: -1.00 | BF109: -1.00
B110: 95.6 | C110: 1.0 | D110: 1.000 | E110: 0.000 | F110: 760.0 | G110: 393.1 | H110: 1.000 | I110: 1.000 | J110: 1.000 | K110: 0.517 | L110: 1.934 | M110: 1.000 | N110: 0.000 | O110: 1.000 | P110: 95.59830484 | R110: 0.841 | S110: 0.841 | T110: 0.000 | V110: 0.1 | W110: 0.1 | X110: 0 | Z110: 0.800 | AA110: 0.80 | AD110: 0.436 | AE110: 0.53 | AF110: 0.80 | AG110: 0.44 | AH110: 0.82 | AI110: 0.82 | AJ110: 0.00 | AK110: =IF(AH110>=$AB$11,COUNTIF($AJ$10:AJ110,">0")-1,99999) -> 11.00 | AM110: 0.07 | AN110: 0.07 | AO110: 0.00 | AP110: =IF(AM110<=$AB$11,COUNTIF($AO$10:AO110,"<0"),99999) -> 10.00 | AT110: 1.00 | AU110: 1.00 | AV110: 0.29 | AX110: =IF(AJ110<=0,0,COUNTIF($AJ$10:AJ110,">0")-1) -> 0.00 | AY110: 0.00 | AZ110: -1.00 | BA110: -1.00 | BC110: =IF(AO110>=0,0,COUNTIF($AO$10:AO110,"<0")) -> 0.00 | BD110: 0.00 | BE110: -1.00 | BF110: -1.00
